{"text_format":"1","workbook":"xlsx","n_sheets":2,"sheets":["ALMUERZO ALUMNOS 4B-4º M","ALMUERZO ALUMNOS 1º-3º BÁSICO"],"not_rendered":{"charts":0,"images":2,"macros":1,"external_links":0,"defined_names":4,"comments":0,"pivot_tables":0},"unopened":[],"bounds":{"document_bytes":16777216,"sheet_cells":100000,"rows_first":2000,"rows_last":500,"rows_between":2000,"halvings":0,"cell_chars":16384,"cell_head_chars":4096},"cells_cut":0,"cells_raw":0,"read":"whole","date_system":"1900"}

{"sheet":"ALMUERZO ALUMNOS 4B-4º M","index":0,"n_rows":171,"n_cols":12,"rows_kept":171,"cut":false,"hidden":false,"merged":[[54,1,56,1],[105,1,106,1],[99,1,100,1],[153,1,154,1],[132,1,133,1],[135,1,137,1],[129,1,130,1],[66,1,67,1],[69,1,70,1],[93,1,94,1],[96,1,97,1],[120,1,121,1],[123,1,124,1],[147,1,148,1],[150,1,151,1],[35,1,37,1],[45,1,46,1],[48,1,49,1],[51,1,52,1],[12,1,13,1],[15,1,16,1],[39,1,40,1],[42,1,43,1],[8,1,10,1],[18,1,19,1],[21,1,22,1],[24,1,25,1],[27,1,29,1],[167,4,168,4],[166,4,166,10],[62,1,64,1],[72,1,73,1],[75,1,76,1],[78,1,79,1],[143,1,145,1],[81,1,83,1],[89,1,91,1],[102,1,103,1],[116,1,118,1],[156,1,157,1],[159,1,160,1],[162,1,164,1],[108,1,110,1],[126,1,127,1]]}
[null,null,null,null,null,"MINUTA MES "]
[null,null,null,null,null,"JUNIO 2022"]
[]
[null,null,null,null,null,"ALMUERZO ALUMNOS 4B-4º M"]
[null,"SEMANA 01","2022-05-02","RAC","2022-05-03","RAC","2022-06-01","RAC","2022-06-02","RAC","2022-06-03","RAC"]
[null,null," "," "," "," "," "," "," "," "," "," "]
[null,"Sopa","Sopa de pollo c/arroz"," ","Consomé de ave"," ","Crema de esparrago"," ","Sopa de carne c/caracolitos"," ","Consome de vacuno"," "]
[null,null," "," "," "," "," "," "," "," "," "," "]
[null,"Salad Bar","Repollo"," ","Lechuga"," ","Lechuga"," ","Repollo mix"," ","Lechuga"," "]
[null,null,"Tomate"," ","Pepino"," ","Apio"," ","Tomate"," ","Cebolla"," "]
[null,null,"Zanahoria"," ","Betarraga"," ","Pepino "," ","Espinaca - Huevo lluvia"," ","Tomate"," "]
[]
[null,"Alternativa 1","Hamburguesa al horno"," ","Vienesa"," ","Pescado apanado"," ","Hamburguesa "," ","Pollo asado"," "]
[null,null,"Arroz al curry"," ","Lentejas parmesanas"," ","Arroz primavera"," ","Pure"," ","Papas fritas"," "]
[]
[null,"Alternativa 2","Panita al jugo"," ","Escalopa jamón queso"," ","Chuleta arvejada"," ","Chaumín mixto - pimentón"," ","Carne al jugo"," "]
[null,null,"Budin de verduras"," ","Spaguettis atomatados"," ","Espirales al orégano"," "," "," ","Arroz graneado"," "]
[]
[null,"Menú Hipocalórico","Huevos york"," ","Filetillo de ave grillé"," ","Tomate reina"," ","Molde de atún "," ","Pollo asado"," "]
[null,null,"Ensaladas surtidas"," ","Ensaladas surtidas"," ","Ensaladas surtidas"," ","Ensaladas surtidas"," ","Ensaladas surtidas"," "]
[]
[null,"Vegetariano","Quiche de champiñon"," ","Salteado thai de vegetales"," ","Tortilla de quinoa"," ","Lasaña boloñesa soya- espinaca"," ","Panqueque de acelga "," "]
[null,null,"Caracolitos al orégano"," ","Espirales"," ","Verduras al wok"," "," "," ","Papas fritas"," "]
[]
[null,"Dieta","Carne al jugo"," ","Pescado al horno"," ","Pescado al horno"," ","Carne asada"," ","Pollo asado"," "]
[null,null,"Spaghetti"," ","Arroz pilaf"," ","Papas cocidas"," ","Espirales"," ","Arroz perla"," "]
[]
[null,"Bar de Postres","Jalea"," ","Jalea"," ","Jalea"," ","Jalea"," ","Jalea"," "]
[null,null,"Bavaroise"," ","Flan"," ","Arroz con leche"," ","Sémola con leche"," ","Helado"," "]
[null,null,"Fruta natural de la estación"," ","Fruta natural de la estación"," ","Fruta natural de la estación"," ","Fruta natural de la estación"," ","Fruta natural de la estación"," "]
[]
[null,"SEMANA 02","2022-06-06","RAC","2022-06-07","RAC","2022-06-08","RAC","2022-06-09","RAC","2022-06-10","RAC"]
[]
[null,"Sopa","Consome de ave"," ","Sopa de pollo c/arroz"," ","Crema de choclo"," ","Consomé de vacuno"," ","Crema de zapallo"," "]
[]
[null,"Salad Bar","Repollo"," ","Lechuga"," ","Repollo mix"," ","Lechuga"," ","Repollo "," "]
[null,null,"Tomate"," ","Pepino"," ","Tomate"," ","Betarraga"," ","Tomate"," "]
[null,null,"Zanahoria"," ","Betarraga"," ","Cebolla"," ","Zapallito italiano"," ","Apio"," "]
[]
[null,"Alternativa 1","Estofado de cerdo"," ","Chorizo"," ","Salsa boloñesa"," ","Cazuela de vacuno"," ","Carne al jugo"," "]
[null,null," "," ","Porotos con riendas"," ","Espirales"," "," "," ","Papas fritas"," "]
[]
[null,"Alternativa 2","Panita al ajillo"," ","Carbonada"," ","Pollo mongoliano"," ","Chuleta de cerdo al orégano"," ","Nuggett"," "]
[null,null,"Arroz graneado"," ","vacuno"," ","Arroz baltimore"," ","Puré picante"," ","Corbatitas al perejil"," "]
[]
[null,"Menú Hipocalórico","Tomate reina"," ","Pescado al limón"," ","Filetillo de pollo grillé"," ","Molde de atún - mayo"," ","Carne al jugo"," "]
[null,null,"Ensaladas surtidas"," ","Ensaladas surtidas"," ","Ensaladas surtidas"," ","Ensaladas surtidas"," ","Ensaladas surtidas"," "]
[]
[null,"Vegetariano","Hamburguesa de garbanzo"," ","Crutones"," ","Curry de garbanzos con durazno"," ","Guiso de acelga"," ","Salsa boloñesa soya"," "]
[null,null,"Charquican de verduras"," ","Porotos con riendas"," ","Arroz blanco y ciboulette"," ","Papas rústicas"," ","Spaghetti"," "]
[]
[null,"Dieta","Pollo asado"," ","Churrasco a la plancha"," ","Carne asada"," ","Pescado al horno"," ","Escalopa a la plancha"," "]
[null,null,"Espirales"," ","Arroz perla"," ","Papas cocidas"," ","Arroz blanco"," ","Espirales"," "]
[]
[null,"Bar de Postres","Jalea"," ","Jalea"," ","Jalea"," ","Jalea"," ","Jalea"," "]
[null,null,"Sémola con leche"," ","Mousse"," ","Arroz con leche"," ","Molde maicena c/ ss caramelo"," ","Helado"," "]
[null,null,"Fruta natural de la estación",null,"Fruta natural de la estación",null,"Fruta natural de la estación",null,"Fruta natural de la estación",null,"Fruta natural de la estación"]
[]
[null,"SEMANA 03","2022-06-13","RAC","2022-06-14","RAC","2022-06-15","RAC","2022-06-16","RAC","2022-06-17","RAC"]
[]
[null,"Sopa","Sopa de pollo c/arroz"," ","Consomé de ave"," ","Crema de esparrago"," ","Sopa de carne c/caracolitos"," ","Consome de vacuno"," "]
[]
[null,"Salad Bar","Lechuga"," ","Repollo mix"," ","Lechuga"," ","Repollo"," ","Lechuga"," "]
[null,null,"Betarraga"," ","Pepino"," ","Cebolla"," ","Acelga"," ","Tomate"," "]
[null,null,"Jardinera"," ","Zanahoria"," ","Tomate"," ","Betarraga"," ","Cebolla"," "]
[]
[null,"Alternativa 1","Ajiaco "," ","Huevo frito"," ","Pollo arvejado"," ","Vienesa"," ","Pech de pollo apanada"," "]
[null,null," "," ","Charquicán de verduras"," ","Arroz perla"," ","Lentejas guisadas"," ","Arroz primavera"," "]
[]
[null,"Alternativa 2","Salsa bontue"," ","Escalopa Jamon Queso"," ","Asado alemán"," ","Salsa boloñesa"," ","Pulpa en salsa española"," "]
[null,null,"Quifaros"," ","Arroz graneado"," ","Puré de papas"," ","Spaghetti"," ","Papas fritas"," "]
[]
[null,"Menú Hipocalórico","Croqueta de atún"," ","Huevo cavancha"," ","Carne al jugo"," ","Tomate reina"," ","Omelette de jamón con verduras"," "]
[null,null,"Ensaladas surtidas"," ","Ensaladas surtidas"," ","Ensaladas surtidas"," ","Ensaladas surtidas"," ","Ensaladas surtidas"," "]
[]
[null,"Vegetariano","Panqueque de acelga "," ","Hamburguesa de garbanzo"," ","Lasaña de verduras"," ","Crutones "," ","Panqueque de acelga "," "]
[null,null,"Papas fritas"," ","Charquicán de verduras"," "," "," ","Lentejas guisadas"," ","Papas fritas"," "]
[]
[null,"Dieta","Carne al jugo"," ","Filetillo de pollo grillé"," ","Juliana de ave"," ","Pescado al horno"," ","Carne asada"," "]
[null,null,"Spaghetti"," ","Papas cocidas"," ","Arroz blanco"," ","Papas salteadas"," ","Arroz blanco"," "]
[]
[null,"Bar de Postres","Jalea"," ","Jalea"," ","Jalea"," ","Jalea"," ","Jalea"," "]
[null,null,"Leche asada"," ","Helado"," ","Flan c/ ss de chocolate"," ","Natilla"," ","Leche nevada"," "]
[null,null,"Fruta natural de la estación",null,"Fruta natural de la estación",null,"Fruta natural de la estación",null,"Fruta natural de la estación",null,"Fruta natural de la estación"]
[]
[null,"SEMANA 04","2022-06-20","RAC","2022-06-21","RAC","2022-06-22","RAC","2022-06-23","RAC","2022-06-24","RAC"]
[]
[null,"Sopa","Consome de ave"," ","Sopa de pollo c/arroz"," ","Crema de choclo"," ","Consomé de vacuno"," ","Crema de zapallo"," "]
[]
[null,"Salad Bar","Repollo"," ","Lechuga"," ","Repollo mix"," ","Lechuga"," ","Repollo mix"," "]
[null,null,"Tomate"," ","Choclo"," ","Betarraga"," ","Tomate"," ","Zanahoria"," "]
[null,null,"Pepino"," ","Cebolla"," ","Zanahoria"," ","Zapallito italiano"," ","Cebolla"," "]
[]
[null,"Alternativa 1","Salteado de vacuno"," ","Guisado de cerdo"," ","Chorizo"," ","Cazuela de albóndigas"," ","Pollo asado"," "]
[null,null,"Arroz"," ","Papas salteadas"," ","Porotos con riendas"," "," "," ","Papas fritas"," "]
[]
[null,"Alternativa 2","Salsa pomodoro"," ","Hamburguesa Casera"," ","Pescado atomatado"," ","Juliana de ave arvejada"," ","Carne al horno"," "]
[null,null,"Raviolis"," ","Verduras salteadas"," ","Arroz graneado"," ","Pure"," ","Verduras salteadas"," "]
[]
[null,"Menú Hipocalórico","Tomate reina"," ","Hamburguesa casera"," ","Pescado al horno"," ","Molde de atún "," ","Pollo asado"," "]
[null,null,"Ensaladas surtidas"," ","Ensaladas surtidas"," ","Ensaladas surtidas"," ","Ensaladas surtidas"," ","Ensaladas surtidas"," "]
[]
[null,"Vegetariano","Pastel de papas - soya"," ","Salteado thai de vegetales"," ","Crutones"," ","Quiche de champiñon y cebolla"," ","Tortillas de quinoa"," "]
[null,null," "," ","Espirales"," ","Porotos con riendas"," "," "," ","Papas leonesas"," "]
[]
[null,"Dieta","Hamburguesa al horno"," ","Juliana de ave"," ","Pescado al horno"," ","Carne al jugo"," ","Churrasco a la plancha"," "]
[null,null,"Espirales"," ","Arroz blanco"," ","Papas salteadas"," ","Spaghetti"," ","Arroz perla"," "]
[]
[null,"Bar de Postres","Jalea"," ","Jalea"," ","Jalea"," ","Jalea"," ","Jalea"," "]
[null,null,"Sémola espejo"," ","Mousse"," ","Cremell"," ","Molde maicena c/ ss caramelo"," ","Helado"," "]
[null,null,"Fruta natural de la estación",null,"Fruta natural de la estación",null,"Fruta natural de la estación",null,"Fruta natural de la estación",null,"Fruta natural de la estación"]
[]
[null,"SEMANA 05","2022-06-27","RAC","2022-06-28","RAC","2022-06-29","RAC","2022-06-30","RAC","2022-07-01","RAC"]
[]
[null,"Sopa","Sopa de pollo c/arroz"," ","Consomé de ave"," ","Crema de tomates"," ","Sopa de carne c/caracolitos"," ","Consome de vacuno"," "]
[]
[null,"Salad Bar","Lechuga"," ","Acelga - Zanahoria"," ","Lechuga"," ","Repollo mix"," ","Lechuga"," "]
[null,null,"Tomate"," ","Cebolla"," ","Apio"," ","Tomate"," ","Zanahoria"," "]
[null,null,"Zapallito italiano"," ","Betarraga"," ","Pepino "," ","Espinaca - Huevo lluvia"," ","Brócoli"," "]
[]
[null,"Alternativa 1","Carbonada de vacuno"," ","Salsa boloñesa"," ","Pastel de papas"," ","Vienesa"," ","Carne asada"," "]
[null,null," "," ","Quifaros "," ",null," ","Lentejas guisadas"," ","Papas fritas"," "]
[]
[null,"Alternativa 2","Cerdito mongoliano"," ","Pescado apanado"," ","Arroz a la valenciana"," ","Pescado a la vizcaína"," ","Chuleta a la mostaza"," "]
[null,null,"Arroz chow fan"," ","Verduras guisadas"," ",null," ","Papas doradas"," ","Espirales"," "]
[]
[null,"Menú Hipocalórico","Quesillo primavera"," ","Pech de pollo al pimentón"," ","Cornett jamón palta"," ","Pescado a la vizacaína"," ","Carne asada"," "]
[null,null,"Ensaladas surtidas"," ","Ensaladas surtidas"," ","Ensaladas surtidas"," ","Ensaladas surtidas"," ","Ensaladas surtidas"," "]
[]
[null,"Vegetariano","Hamburguesa de garbanzo"," ","Cocido de lentejas sin carne, con esparragos "," ","Salteado thai de vegetales"," ","Lasaña boloñesa soya- espinaca"," ","Panqueque de acelga "," "]
[null,null,"Charquican de verduras"," ","Puré de papas"," ","Espirales"," "," "," ","Papas fritas"," "]
[]
[null,"Dieta","Carne al jugo"," ","Hamburguesa casera"," ","Pescado al horno"," ","Filetillo de pollo grillé"," ","Carne asada"," "]
[null,null,"Arroz blanco"," ","Quifaros"," ","Papas cocidas"," ","Arroz blanco"," ","Espirales"," "]
[]
[null,"Bar de Postres","Jalea"," ","Jalea"," ","Jalea"," ","Jalea"," ","Jalea"," "]
[null,null,"Natilla"," ","Leche nevada"," ","Arroz con leche"," ","Sémola con leche"," ","Bavaroise"," "]
[null,null,"Fruta natural de la estación",null,"Fruta natural de la estación",null,"Fruta natural de la estación",null,"Fruta natural de la estación",null,"Fruta natural de la estación"]
[]
[null,"SEMANA 06","2022-07-04","RAC","2022-07-05","RAC","2022-07-06","RAC","2022-07-07","RAC","2022-07-08","RAC"]
[]
[null,"Sopa","Crema de verduras"," ","Consomé de ave"," ","Crema de choclo"," ","Crema de choclo"," ","Crema de choclo"," "]
[]
[null,"Salad Bar","Repollo"," ","Lechuga"," ","Repollo mix"," ","Lechuga"," ","Repollo "," "]
[null,null,"Tomate"," ","Pepino"," ","Tomate"," ","Betarraga"," ","Tomate"," "]
[null,null,"Zanahoria"," ","Betarraga"," ","Cebolla"," ","Zapallito -Pimentón"," ","Apio"," "]
[]
[null,"Alternativa 1","Juliana de vacuno"," "," "," "," "," "," "," "," "," "]
[null,null,"Corbatitas "," "," "," "," "," "," "," "," "," "]
[]
[null,"Alternativa 2","Chuletas al horno"," "," "," "," "," "," "," "," "," "]
[null,null,"Verduras salteadas"," "," "," "," "," "," "," "," "," "]
[]
[null,"Menú Hipocalórico","Tortilla de zanahoria"," "," "," "," "," "," "," "," "," "]
[null,null,"Ensaladas surtidas"," "," "," "," "," "," "," "," "," "]
[]
[null,"Vegetariano","Lasaña de verduras"," "," "," "," "," "," "," "," "," "]
[null,null," "," "," "," "," "," "," "," "," "," "]
[]
[null,"Dieta","Juliana de ave"," "," "," "," "," "," "," "," "," "]
[null,null,"Arroz blanco"," "," "," "," "," "," "," "," "," "]
[]
[null,"Bar de Postres","Jalea"," ","Jalea"," ","Jalea"," ","Jalea"," ","Jalea"," "]
[null,null,"Bavaroise"," ","Flan"," ","Helado"," ","Leche asada"," ","Sémola con leche"," "]
[null,null,"Fruta natural de la estación",null,"Fruta natural de la estación",null,"Fruta natural de la estación",null,"Fruta natural de la estación",null,"Fruta natural de la estación"]
[]
[null,null,null,null,"CUADRO DE CONTROL"]
[]
[]
[null,null,null,null,"CREADA POR",null,"REVISADO POR",null,"RATIFICADA POR",null,"APROBADO POR"]
[null,null,null,null,"DEPTO. TECNICO",null,"CASINO",null,"SUPERVISOR",null,"CLIENTE"]

{"sheet":"ALMUERZO ALUMNOS 1º-3º BÁSICO","index":1,"n_rows":171,"n_cols":12,"rows_kept":171,"cut":false,"hidden":false,"merged":[[81,1,83,1],[93,1,94,1],[96,1,97,1],[120,1,121,1],[123,1,124,1],[116,1,118,1],[126,1,127,1],[89,1,91,1],[99,1,100,1],[102,1,103,1],[105,1,106,1],[108,1,110,1],[129,1,130,1],[166,4,166,10],[167,4,168,4],[132,1,133,1],[135,1,137,1],[143,1,145,1],[156,1,157,1],[159,1,160,1],[162,1,164,1],[153,1,154,1],[147,1,148,1],[150,1,151,1],[8,1,10,1],[18,1,19,1],[21,1,22,1],[24,1,25,1],[27,1,29,1],[12,1,13,1],[15,1,16,1],[35,1,37,1],[45,1,46,1],[54,1,56,1],[62,1,64,1],[78,1,79,1],[48,1,49,1],[51,1,52,1],[72,1,73,1],[75,1,76,1],[39,1,40,1],[42,1,43,1],[66,1,67,1],[69,1,70,1]]}
[null,null,null,null,null,{"$f":"+#REF!","v":{"$error":"#REF!"}}]
[null,null,null,null,null,{"$f":"'ALMUERZO ALUMNOS 4B-4º M'!$F$2","v":"JUNIO 2022"}]
[null,null,null,null,null,"ALMUERZO ALUMNOS 1º - 3º  BÁSICO "]
[]
[null,{"$f":"'ALMUERZO ALUMNOS 4B-4º M'!B5","v":"SEMANA 01"},{"$f":"'ALMUERZO ALUMNOS 4B-4º M'!C5","v":"2022-05-02"},{"$f":"'ALMUERZO ALUMNOS 4B-4º M'!D5","v":"RAC"},{"$f":"'ALMUERZO ALUMNOS 4B-4º M'!E5","v":"2022-05-03"},{"$f":"'ALMUERZO ALUMNOS 4B-4º M'!F5","v":"RAC"},{"$f":"'ALMUERZO ALUMNOS 4B-4º M'!G5","v":"2022-06-01"},{"$f":"'ALMUERZO ALUMNOS 4B-4º M'!H5","v":"RAC"},{"$f":"'ALMUERZO ALUMNOS 4B-4º M'!I5","v":"2022-06-02"},{"$f":"'ALMUERZO ALUMNOS 4B-4º M'!J5","v":"RAC"},{"$f":"'ALMUERZO ALUMNOS 4B-4º M'!K5","v":"2022-06-03"},{"$f":"'ALMUERZO ALUMNOS 4B-4º M'!L5","v":"RAC"}]
[]
[null,"Sopa",{"$f":"IF('ALMUERZO ALUMNOS 4B-4º M'!C7<>\"\",'ALMUERZO ALUMNOS 4B-4º M'!C7,\"\")","v":"Sopa de pollo c/arroz"}," ",{"$f":"IF('ALMUERZO ALUMNOS 4B-4º M'!E7<>\"\",'ALMUERZO ALUMNOS 4B-4º M'!E7,\"\")","v":"Consomé de ave"}," ",{"$f":"IF('ALMUERZO ALUMNOS 4B-4º M'!G7<>\"\",'ALMUERZO ALUMNOS 4B-4º M'!G7,\"\")","v":"Crema de esparrago"}," ",{"$f":"IF('ALMUERZO ALUMNOS 4B-4º M'!I7<>\"\",'ALMUERZO ALUMNOS 4B-4º M'!I7,\"\")","v":"Sopa de carne c/caracolitos"}," ",{"$f":"IF('ALMUERZO ALUMNOS 4B-4º M'!K7<>\"\",'ALMUERZO ALUMNOS 4B-4º M'!K7,\"\")","v":"Consome de vacuno"}," "]
[null,null," "," "," "," "," "," "," "," "," "," "]
[null,"Salad Bar",{"$f":"IF('ALMUERZO ALUMNOS 4B-4º M'!C9<>\"\",'ALMUERZO ALUMNOS 4B-4º M'!C9,\"\")","v":"Repollo"},null,{"$f":"IF('ALMUERZO ALUMNOS 4B-4º M'!E9<>\"\",'ALMUERZO ALUMNOS 4B-4º M'!E9,\"\")","v":"Lechuga"},null,{"$f":"IF('ALMUERZO ALUMNOS 4B-4º M'!G9<>\"\",'ALMUERZO ALUMNOS 4B-4º M'!G9,\"\")","v":"Lechuga"},null,{"$f":"IF('ALMUERZO ALUMNOS 4B-4º M'!I9<>\"\",'ALMUERZO ALUMNOS 4B-4º M'!I9,\"\")","v":"Repollo mix"},null,{"$f":"IF('ALMUERZO ALUMNOS 4B-4º M'!K9<>\"\",'ALMUERZO ALUMNOS 4B-4º M'!K9,\"\")","v":"Lechuga"}]
[null,null,{"$f":"IF('ALMUERZO ALUMNOS 4B-4º M'!C10<>\"\",'ALMUERZO ALUMNOS 4B-4º M'!C10,\"\")","v":"Tomate"},null,{"$f":"IF('ALMUERZO ALUMNOS 4B-4º M'!E10<>\"\",'ALMUERZO ALUMNOS 4B-4º M'!E10,\"\")","v":"Pepino"},null,{"$f":"IF('ALMUERZO ALUMNOS 4B-4º M'!G10<>\"\",'ALMUERZO ALUMNOS 4B-4º M'!G10,\"\")","v":"Apio"},null,{"$f":"IF('ALMUERZO ALUMNOS 4B-4º M'!I10<>\"\",'ALMUERZO ALUMNOS 4B-4º M'!I10,\"\")","v":"Tomate"},null,{"$f":"IF('ALMUERZO ALUMNOS 4B-4º M'!K10<>\"\",'ALMUERZO ALUMNOS 4B-4º M'!K10,\"\")","v":"Cebolla"}]
[null,null,{"$f":"IF('ALMUERZO ALUMNOS 4B-4º M'!C11<>\"\",'ALMUERZO ALUMNOS 4B-4º M'!C11,\"\")","v":"Zanahoria"},null,{"$f":"IF('ALMUERZO ALUMNOS 4B-4º M'!E11<>\"\",'ALMUERZO ALUMNOS 4B-4º M'!E11,\"\")","v":"Betarraga"},null,{"$f":"IF('ALMUERZO ALUMNOS 4B-4º M'!G11<>\"\",'ALMUERZO ALUMNOS 4B-4º M'!G11,\"\")","v":"Pepino "},null,{"$f":"IF('ALMUERZO ALUMNOS 4B-4º M'!I11<>\"\",'ALMUERZO ALUMNOS 4B-4º M'!I11,\"\")","v":"Espinaca - Huevo lluvia"},null,{"$f":"IF('ALMUERZO ALUMNOS 4B-4º M'!K11<>\"\",'ALMUERZO ALUMNOS 4B-4º M'!K11,\"\")","v":"Tomate"}]
[]
[null,"Alternativa 1",{"$f":"IF('ALMUERZO ALUMNOS 4B-4º M'!C13<>\"\",'ALMUERZO ALUMNOS 4B-4º M'!C13,\"\")","v":"Hamburguesa al horno"},null,{"$f":"IF('ALMUERZO ALUMNOS 4B-4º M'!E13<>\"\",'ALMUERZO ALUMNOS 4B-4º M'!E13,\"\")","v":"Vienesa"},null,{"$f":"IF('ALMUERZO ALUMNOS 4B-4º M'!G13<>\"\",'ALMUERZO ALUMNOS 4B-4º M'!G13,\"\")","v":"Pescado apanado"},null,{"$f":"IF('ALMUERZO ALUMNOS 4B-4º M'!I13<>\"\",'ALMUERZO ALUMNOS 4B-4º M'!I13,\"\")","v":"Hamburguesa "},null,{"$f":"IF('ALMUERZO ALUMNOS 4B-4º M'!K13<>\"\",'ALMUERZO ALUMNOS 4B-4º M'!K13,\"\")","v":"Pollo asado"}]
[null,null,{"$f":"IF('ALMUERZO ALUMNOS 4B-4º M'!C14<>\"\",'ALMUERZO ALUMNOS 4B-4º M'!C14,\"\")","v":"Arroz al curry"},null,{"$f":"IF('ALMUERZO ALUMNOS 4B-4º M'!E14<>\"\",'ALMUERZO ALUMNOS 4B-4º M'!E14,\"\")","v":"Lentejas parmesanas"},null,{"$f":"IF('ALMUERZO ALUMNOS 4B-4º M'!G14<>\"\",'ALMUERZO ALUMNOS 4B-4º M'!G14,\"\")","v":"Arroz primavera"},null,{"$f":"IF('ALMUERZO ALUMNOS 4B-4º M'!I14<>\"\",'ALMUERZO ALUMNOS 4B-4º M'!I14,\"\")","v":"Pure"},null,{"$f":"IF('ALMUERZO ALUMNOS 4B-4º M'!K14<>\"\",'ALMUERZO ALUMNOS 4B-4º M'!K14,\"\")","v":"Papas fritas"}]
[]
[null,"Alternativa 2",{"$f":"IF('ALMUERZO ALUMNOS 4B-4º M'!C16<>\"\",'ALMUERZO ALUMNOS 4B-4º M'!C16,\"\")","v":"Panita al jugo"},null,{"$f":"IF('ALMUERZO ALUMNOS 4B-4º M'!E16<>\"\",'ALMUERZO ALUMNOS 4B-4º M'!E16,\"\")","v":"Escalopa jamón queso"},null,{"$f":"IF('ALMUERZO ALUMNOS 4B-4º M'!G16<>\"\",'ALMUERZO ALUMNOS 4B-4º M'!G16,\"\")","v":"Chuleta arvejada"},null,{"$f":"IF('ALMUERZO ALUMNOS 4B-4º M'!I16<>\"\",'ALMUERZO ALUMNOS 4B-4º M'!I16,\"\")","v":"Chaumín mixto - pimentón"},null,{"$f":"IF('ALMUERZO ALUMNOS 4B-4º M'!K16<>\"\",'ALMUERZO ALUMNOS 4B-4º M'!K16,\"\")","v":"Carne al jugo"}]
[null,null,{"$f":"IF('ALMUERZO ALUMNOS 4B-4º M'!C17<>\"\",'ALMUERZO ALUMNOS 4B-4º M'!C17,\"\")","v":"Budin de verduras"},null,{"$f":"IF('ALMUERZO ALUMNOS 4B-4º M'!E17<>\"\",'ALMUERZO ALUMNOS 4B-4º M'!E17,\"\")","v":"Spaguettis atomatados"},null,{"$f":"IF('ALMUERZO ALUMNOS 4B-4º M'!G17<>\"\",'ALMUERZO ALUMNOS 4B-4º M'!G17,\"\")","v":"Espirales al orégano"},null,{"$f":"IF('ALMUERZO ALUMNOS 4B-4º M'!I17<>\"\",'ALMUERZO ALUMNOS 4B-4º M'!I17,\"\")","v":" "},null,{"$f":"IF('ALMUERZO ALUMNOS 4B-4º M'!K17<>\"\",'ALMUERZO ALUMNOS 4B-4º M'!K17,\"\")","v":"Arroz graneado"}]
[]
[null,"Menú Hipocalórico",{"$f":"IF('ALMUERZO ALUMNOS 4B-4º M'!C19<>\"\",'ALMUERZO ALUMNOS 4B-4º M'!C19,\"\")","v":"Huevos york"},null,{"$f":"IF('ALMUERZO ALUMNOS 4B-4º M'!E19<>\"\",'ALMUERZO ALUMNOS 4B-4º M'!E19,\"\")","v":"Filetillo de ave grillé"},null,{"$f":"IF('ALMUERZO ALUMNOS 4B-4º M'!G19<>\"\",'ALMUERZO ALUMNOS 4B-4º M'!G19,\"\")","v":"Tomate reina"},null,{"$f":"IF('ALMUERZO ALUMNOS 4B-4º M'!I19<>\"\",'ALMUERZO ALUMNOS 4B-4º M'!I19,\"\")","v":"Molde de atún "},null,{"$f":"IF('ALMUERZO ALUMNOS 4B-4º M'!K19<>\"\",'ALMUERZO ALUMNOS 4B-4º M'!K19,\"\")","v":"Pollo asado"}]
[null,null,{"$f":"IF('ALMUERZO ALUMNOS 4B-4º M'!C20<>\"\",'ALMUERZO ALUMNOS 4B-4º M'!C20,\"\")","v":"Ensaladas surtidas"},null,{"$f":"IF('ALMUERZO ALUMNOS 4B-4º M'!E20<>\"\",'ALMUERZO ALUMNOS 4B-4º M'!E20,\"\")","v":"Ensaladas surtidas"},null,{"$f":"IF('ALMUERZO ALUMNOS 4B-4º M'!G20<>\"\",'ALMUERZO ALUMNOS 4B-4º M'!G20,\"\")","v":"Ensaladas surtidas"},null,{"$f":"IF('ALMUERZO ALUMNOS 4B-4º M'!I20<>\"\",'ALMUERZO ALUMNOS 4B-4º M'!I20,\"\")","v":"Ensaladas surtidas"},null,{"$f":"IF('ALMUERZO ALUMNOS 4B-4º M'!K20<>\"\",'ALMUERZO ALUMNOS 4B-4º M'!K20,\"\")","v":"Ensaladas surtidas"}]
[]
[null,"Vegetariano",{"$f":"IF('ALMUERZO ALUMNOS 4B-4º M'!C22<>\"\",'ALMUERZO ALUMNOS 4B-4º M'!C22,\"\")","v":"Quiche de champiñon"},null,{"$f":"IF('ALMUERZO ALUMNOS 4B-4º M'!E22<>\"\",'ALMUERZO ALUMNOS 4B-4º M'!E22,\"\")","v":"Salteado thai de vegetales"},null,{"$f":"IF('ALMUERZO ALUMNOS 4B-4º M'!G22<>\"\",'ALMUERZO ALUMNOS 4B-4º M'!G22,\"\")","v":"Tortilla de quinoa"},null,{"$f":"IF('ALMUERZO ALUMNOS 4B-4º M'!I22<>\"\",'ALMUERZO ALUMNOS 4B-4º M'!I22,\"\")","v":"Lasaña boloñesa soya- espinaca"},null,{"$f":"IF('ALMUERZO ALUMNOS 4B-4º M'!K22<>\"\",'ALMUERZO ALUMNOS 4B-4º M'!K22,\"\")","v":"Panqueque de acelga "}]
[null,null,{"$f":"IF('ALMUERZO ALUMNOS 4B-4º M'!C23<>\"\",'ALMUERZO ALUMNOS 4B-4º M'!C23,\"\")","v":"Caracolitos al orégano"},null,{"$f":"IF('ALMUERZO ALUMNOS 4B-4º M'!E23<>\"\",'ALMUERZO ALUMNOS 4B-4º M'!E23,\"\")","v":"Espirales"},null,{"$f":"IF('ALMUERZO ALUMNOS 4B-4º M'!G23<>\"\",'ALMUERZO ALUMNOS 4B-4º M'!G23,\"\")","v":"Verduras al wok"},null,{"$f":"IF('ALMUERZO ALUMNOS 4B-4º M'!I23<>\"\",'ALMUERZO ALUMNOS 4B-4º M'!I23,\"\")","v":" "},null,{"$f":"IF('ALMUERZO ALUMNOS 4B-4º M'!K23<>\"\",'ALMUERZO ALUMNOS 4B-4º M'!K23,\"\")","v":"Papas fritas"}]
[]
[null,"Dieta",{"$f":"IF('ALMUERZO ALUMNOS 4B-4º M'!C25<>\"\",'ALMUERZO ALUMNOS 4B-4º M'!C25,\"\")","v":"Carne al jugo"},null,{"$f":"IF('ALMUERZO ALUMNOS 4B-4º M'!E25<>\"\",'ALMUERZO ALUMNOS 4B-4º M'!E25,\"\")","v":"Pescado al horno"},null,{"$f":"IF('ALMUERZO ALUMNOS 4B-4º M'!G25<>\"\",'ALMUERZO ALUMNOS 4B-4º M'!G25,\"\")","v":"Pescado al horno"},null,{"$f":"IF('ALMUERZO ALUMNOS 4B-4º M'!I25<>\"\",'ALMUERZO ALUMNOS 4B-4º M'!I25,\"\")","v":"Carne asada"},null,{"$f":"IF('ALMUERZO ALUMNOS 4B-4º M'!K25<>\"\",'ALMUERZO ALUMNOS 4B-4º M'!K25,\"\")","v":"Pollo asado"}]
[null,null,{"$f":"IF('ALMUERZO ALUMNOS 4B-4º M'!C26<>\"\",'ALMUERZO ALUMNOS 4B-4º M'!C26,\"\")","v":"Spaghetti"},null,{"$f":"IF('ALMUERZO ALUMNOS 4B-4º M'!E26<>\"\",'ALMUERZO ALUMNOS 4B-4º M'!E26,\"\")","v":"Arroz pilaf"},null,{"$f":"IF('ALMUERZO ALUMNOS 4B-4º M'!G26<>\"\",'ALMUERZO ALUMNOS 4B-4º M'!G26,\"\")","v":"Papas cocidas"},null,{"$f":"IF('ALMUERZO ALUMNOS 4B-4º M'!I26<>\"\",'ALMUERZO ALUMNOS 4B-4º M'!I26,\"\")","v":"Espirales"},null,{"$f":"IF('ALMUERZO ALUMNOS 4B-4º M'!K26<>\"\",'ALMUERZO ALUMNOS 4B-4º M'!K26,\"\")","v":"Arroz perla"}]
[]
[null,"Bar de Postres",{"$f":"IF('ALMUERZO ALUMNOS 4B-4º M'!C28<>\"\",'ALMUERZO ALUMNOS 4B-4º M'!C28,\"\")","v":"Jalea"},null,{"$f":"IF('ALMUERZO ALUMNOS 4B-4º M'!E28<>\"\",'ALMUERZO ALUMNOS 4B-4º M'!E28,\"\")","v":"Jalea"},null,{"$f":"IF('ALMUERZO ALUMNOS 4B-4º M'!G28<>\"\",'ALMUERZO ALUMNOS 4B-4º M'!G28,\"\")","v":"Jalea"},null,{"$f":"IF('ALMUERZO ALUMNOS 4B-4º M'!I28<>\"\",'ALMUERZO ALUMNOS 4B-4º M'!I28,\"\")","v":"Jalea"},null,{"$f":"IF('ALMUERZO ALUMNOS 4B-4º M'!K28<>\"\",'ALMUERZO ALUMNOS 4B-4º M'!K28,\"\")","v":"Jalea"}]
[null,null,{"$f":"IF('ALMUERZO ALUMNOS 4B-4º M'!C29<>\"\",'ALMUERZO ALUMNOS 4B-4º M'!C29,\"\")","v":"Bavaroise"},null,{"$f":"IF('ALMUERZO ALUMNOS 4B-4º M'!E29<>\"\",'ALMUERZO ALUMNOS 4B-4º M'!E29,\"\")","v":"Flan"},null,{"$f":"IF('ALMUERZO ALUMNOS 4B-4º M'!G29<>\"\",'ALMUERZO ALUMNOS 4B-4º M'!G29,\"\")","v":"Arroz con leche"},null,{"$f":"IF('ALMUERZO ALUMNOS 4B-4º M'!I29<>\"\",'ALMUERZO ALUMNOS 4B-4º M'!I29,\"\")","v":"Sémola con leche"},null,{"$f":"IF('ALMUERZO ALUMNOS 4B-4º M'!K29<>\"\",'ALMUERZO ALUMNOS 4B-4º M'!K29,\"\")","v":"Helado"}]
[null,null,{"$f":"IF('ALMUERZO ALUMNOS 4B-4º M'!C30<>\"\",'ALMUERZO ALUMNOS 4B-4º M'!C30,\"\")","v":"Fruta natural de la estación"}," ",{"$f":"IF('ALMUERZO ALUMNOS 4B-4º M'!E30<>\"\",'ALMUERZO ALUMNOS 4B-4º M'!E30,\"\")","v":"Fruta natural de la estación"}," ",{"$f":"IF('ALMUERZO ALUMNOS 4B-4º M'!G30<>\"\",'ALMUERZO ALUMNOS 4B-4º M'!G30,\"\")","v":"Fruta natural de la estación"}," ",{"$f":"IF('ALMUERZO ALUMNOS 4B-4º M'!I30<>\"\",'ALMUERZO ALUMNOS 4B-4º M'!I30,\"\")","v":"Fruta natural de la estación"}," ",{"$f":"IF('ALMUERZO ALUMNOS 4B-4º M'!K30<>\"\",'ALMUERZO ALUMNOS 4B-4º M'!K30,\"\")","v":"Fruta natural de la estación"}," "]
[]
[null,{"$f":"'ALMUERZO ALUMNOS 4B-4º M'!B32","v":"SEMANA 02"},{"$f":"'ALMUERZO ALUMNOS 4B-4º M'!C32","v":"2022-06-06"},{"$f":"'ALMUERZO ALUMNOS 4B-4º M'!D32","v":"RAC"},{"$f":"'ALMUERZO ALUMNOS 4B-4º M'!E32","v":"2022-06-07"},{"$f":"'ALMUERZO ALUMNOS 4B-4º M'!F32","v":"RAC"},{"$f":"'ALMUERZO ALUMNOS 4B-4º M'!G32","v":"2022-06-08"},{"$f":"'ALMUERZO ALUMNOS 4B-4º M'!H32","v":"RAC"},{"$f":"'ALMUERZO ALUMNOS 4B-4º M'!I32","v":"2022-06-09"},{"$f":"'ALMUERZO ALUMNOS 4B-4º M'!J32","v":"RAC"},{"$f":"'ALMUERZO ALUMNOS 4B-4º M'!K32","v":"2022-06-10"},{"$f":"'ALMUERZO ALUMNOS 4B-4º M'!L32","v":"RAC"}]
[]
[null,"Sopa",{"$f":"IF('ALMUERZO ALUMNOS 4B-4º M'!C34<>\"\",'ALMUERZO ALUMNOS 4B-4º M'!C34,\"\")","v":"Consome de ave"}," ",{"$f":"IF('ALMUERZO ALUMNOS 4B-4º M'!E34<>\"\",'ALMUERZO ALUMNOS 4B-4º M'!E34,\"\")","v":"Sopa de pollo c/arroz"}," ",{"$f":"IF('ALMUERZO ALUMNOS 4B-4º M'!G34<>\"\",'ALMUERZO ALUMNOS 4B-4º M'!G34,\"\")","v":"Crema de choclo"}," ",{"$f":"IF('ALMUERZO ALUMNOS 4B-4º M'!I34<>\"\",'ALMUERZO ALUMNOS 4B-4º M'!I34,\"\")","v":"Consomé de vacuno"}," ",{"$f":"IF('ALMUERZO ALUMNOS 4B-4º M'!K34<>\"\",'ALMUERZO ALUMNOS 4B-4º M'!K34,\"\")","v":"Crema de zapallo"}," "]
[null,null," "," "," "," "," "," "," "," "," "," "]
[null,"Salad Bar",{"$f":"IF('ALMUERZO ALUMNOS 4B-4º M'!C36<>\"\",'ALMUERZO ALUMNOS 4B-4º M'!C36,\"\")","v":"Repollo"},null,{"$f":"IF('ALMUERZO ALUMNOS 4B-4º M'!E36<>\"\",'ALMUERZO ALUMNOS 4B-4º M'!E36,\"\")","v":"Lechuga"},null,{"$f":"IF('ALMUERZO ALUMNOS 4B-4º M'!G36<>\"\",'ALMUERZO ALUMNOS 4B-4º M'!G36,\"\")","v":"Repollo mix"},null,{"$f":"IF('ALMUERZO ALUMNOS 4B-4º M'!I36<>\"\",'ALMUERZO ALUMNOS 4B-4º M'!I36,\"\")","v":"Lechuga"},null,{"$f":"IF('ALMUERZO ALUMNOS 4B-4º M'!K36<>\"\",'ALMUERZO ALUMNOS 4B-4º M'!K36,\"\")","v":"Repollo "}]
[null,null,{"$f":"IF('ALMUERZO ALUMNOS 4B-4º M'!C37<>\"\",'ALMUERZO ALUMNOS 4B-4º M'!C37,\"\")","v":"Tomate"},null,{"$f":"IF('ALMUERZO ALUMNOS 4B-4º M'!E37<>\"\",'ALMUERZO ALUMNOS 4B-4º M'!E37,\"\")","v":"Pepino"},null,{"$f":"IF('ALMUERZO ALUMNOS 4B-4º M'!G37<>\"\",'ALMUERZO ALUMNOS 4B-4º M'!G37,\"\")","v":"Tomate"},null,{"$f":"IF('ALMUERZO ALUMNOS 4B-4º M'!I37<>\"\",'ALMUERZO ALUMNOS 4B-4º M'!I37,\"\")","v":"Betarraga"},null,{"$f":"IF('ALMUERZO ALUMNOS 4B-4º M'!K37<>\"\",'ALMUERZO ALUMNOS 4B-4º M'!K37,\"\")","v":"Tomate"}]
[null,null,{"$f":"IF('ALMUERZO ALUMNOS 4B-4º M'!C38<>\"\",'ALMUERZO ALUMNOS 4B-4º M'!C38,\"\")","v":"Zanahoria"},null,{"$f":"IF('ALMUERZO ALUMNOS 4B-4º M'!E38<>\"\",'ALMUERZO ALUMNOS 4B-4º M'!E38,\"\")","v":"Betarraga"},null,{"$f":"IF('ALMUERZO ALUMNOS 4B-4º M'!G38<>\"\",'ALMUERZO ALUMNOS 4B-4º M'!G38,\"\")","v":"Cebolla"},null,{"$f":"IF('ALMUERZO ALUMNOS 4B-4º M'!I38<>\"\",'ALMUERZO ALUMNOS 4B-4º M'!I38,\"\")","v":"Zapallito italiano"},null,{"$f":"IF('ALMUERZO ALUMNOS 4B-4º M'!K38<>\"\",'ALMUERZO ALUMNOS 4B-4º M'!K38,\"\")","v":"Apio"}]
[]
[null,"Alternativa 1",{"$f":"IF('ALMUERZO ALUMNOS 4B-4º M'!C40<>\"\",'ALMUERZO ALUMNOS 4B-4º M'!C40,\"\")","v":"Estofado de cerdo"},null,{"$f":"IF('ALMUERZO ALUMNOS 4B-4º M'!E40<>\"\",'ALMUERZO ALUMNOS 4B-4º M'!E40,\"\")","v":"Chorizo"},null,{"$f":"IF('ALMUERZO ALUMNOS 4B-4º M'!G40<>\"\",'ALMUERZO ALUMNOS 4B-4º M'!G40,\"\")","v":"Salsa boloñesa"},null,{"$f":"IF('ALMUERZO ALUMNOS 4B-4º M'!I40<>\"\",'ALMUERZO ALUMNOS 4B-4º M'!I40,\"\")","v":"Cazuela de vacuno"},null,{"$f":"IF('ALMUERZO ALUMNOS 4B-4º M'!K40<>\"\",'ALMUERZO ALUMNOS 4B-4º M'!K40,\"\")","v":"Carne al jugo"}]
[null,null,{"$f":"IF('ALMUERZO ALUMNOS 4B-4º M'!C41<>\"\",'ALMUERZO ALUMNOS 4B-4º M'!C41,\"\")","v":" "},null,{"$f":"IF('ALMUERZO ALUMNOS 4B-4º M'!E41<>\"\",'ALMUERZO ALUMNOS 4B-4º M'!E41,\"\")","v":"Porotos con riendas"},null,{"$f":"IF('ALMUERZO ALUMNOS 4B-4º M'!G41<>\"\",'ALMUERZO ALUMNOS 4B-4º M'!G41,\"\")","v":"Espirales"},null,{"$f":"IF('ALMUERZO ALUMNOS 4B-4º M'!I41<>\"\",'ALMUERZO ALUMNOS 4B-4º M'!I41,\"\")","v":" "},null,{"$f":"IF('ALMUERZO ALUMNOS 4B-4º M'!K41<>\"\",'ALMUERZO ALUMNOS 4B-4º M'!K41,\"\")","v":"Papas fritas"}]
[]
[null,"Alternativa 2",{"$f":"IF('ALMUERZO ALUMNOS 4B-4º M'!C43<>\"\",'ALMUERZO ALUMNOS 4B-4º M'!C43,\"\")","v":"Panita al ajillo"},null,{"$f":"IF('ALMUERZO ALUMNOS 4B-4º M'!E43<>\"\",'ALMUERZO ALUMNOS 4B-4º M'!E43,\"\")","v":"Carbonada"},null,{"$f":"IF('ALMUERZO ALUMNOS 4B-4º M'!G43<>\"\",'ALMUERZO ALUMNOS 4B-4º M'!G43,\"\")","v":"Pollo mongoliano"},null,{"$f":"IF('ALMUERZO ALUMNOS 4B-4º M'!I43<>\"\",'ALMUERZO ALUMNOS 4B-4º M'!I43,\"\")","v":"Chuleta de cerdo al orégano"},null,{"$f":"IF('ALMUERZO ALUMNOS 4B-4º M'!K43<>\"\",'ALMUERZO ALUMNOS 4B-4º M'!K43,\"\")","v":"Nuggett"}]
[null,null,{"$f":"IF('ALMUERZO ALUMNOS 4B-4º M'!C44<>\"\",'ALMUERZO ALUMNOS 4B-4º M'!C44,\"\")","v":"Arroz graneado"},null,{"$f":"IF('ALMUERZO ALUMNOS 4B-4º M'!E44<>\"\",'ALMUERZO ALUMNOS 4B-4º M'!E44,\"\")","v":"vacuno"},null,{"$f":"IF('ALMUERZO ALUMNOS 4B-4º M'!G44<>\"\",'ALMUERZO ALUMNOS 4B-4º M'!G44,\"\")","v":"Arroz baltimore"},null,{"$f":"IF('ALMUERZO ALUMNOS 4B-4º M'!I44<>\"\",'ALMUERZO ALUMNOS 4B-4º M'!I44,\"\")","v":"Puré picante"},null,{"$f":"IF('ALMUERZO ALUMNOS 4B-4º M'!K44<>\"\",'ALMUERZO ALUMNOS 4B-4º M'!K44,\"\")","v":"Corbatitas al perejil"}]
[]
[null,"Menú Hipocalórico",{"$f":"IF('ALMUERZO ALUMNOS 4B-4º M'!C46<>\"\",'ALMUERZO ALUMNOS 4B-4º M'!C46,\"\")","v":"Tomate reina"},null,{"$f":"IF('ALMUERZO ALUMNOS 4B-4º M'!E46<>\"\",'ALMUERZO ALUMNOS 4B-4º M'!E46,\"\")","v":"Pescado al limón"},null,{"$f":"IF('ALMUERZO ALUMNOS 4B-4º M'!G46<>\"\",'ALMUERZO ALUMNOS 4B-4º M'!G46,\"\")","v":"Filetillo de pollo grillé"},null,{"$f":"IF('ALMUERZO ALUMNOS 4B-4º M'!I46<>\"\",'ALMUERZO ALUMNOS 4B-4º M'!I46,\"\")","v":"Molde de atún - mayo"},null,{"$f":"IF('ALMUERZO ALUMNOS 4B-4º M'!K46<>\"\",'ALMUERZO ALUMNOS 4B-4º M'!K46,\"\")","v":"Carne al jugo"}]
[null,null,{"$f":"IF('ALMUERZO ALUMNOS 4B-4º M'!C47<>\"\",'ALMUERZO ALUMNOS 4B-4º M'!C47,\"\")","v":"Ensaladas surtidas"},null,{"$f":"IF('ALMUERZO ALUMNOS 4B-4º M'!E47<>\"\",'ALMUERZO ALUMNOS 4B-4º M'!E47,\"\")","v":"Ensaladas surtidas"},null,{"$f":"IF('ALMUERZO ALUMNOS 4B-4º M'!G47<>\"\",'ALMUERZO ALUMNOS 4B-4º M'!G47,\"\")","v":"Ensaladas surtidas"},null,{"$f":"IF('ALMUERZO ALUMNOS 4B-4º M'!I47<>\"\",'ALMUERZO ALUMNOS 4B-4º M'!I47,\"\")","v":"Ensaladas surtidas"},null,{"$f":"IF('ALMUERZO ALUMNOS 4B-4º M'!K47<>\"\",'ALMUERZO ALUMNOS 4B-4º M'!K47,\"\")","v":"Ensaladas surtidas"}]
[]
[null,"Vegetariano",{"$f":"IF('ALMUERZO ALUMNOS 4B-4º M'!C49<>\"\",'ALMUERZO ALUMNOS 4B-4º M'!C49,\"\")","v":"Hamburguesa de garbanzo"},null,{"$f":"IF('ALMUERZO ALUMNOS 4B-4º M'!E49<>\"\",'ALMUERZO ALUMNOS 4B-4º M'!E49,\"\")","v":"Crutones"},null,{"$f":"IF('ALMUERZO ALUMNOS 4B-4º M'!G49<>\"\",'ALMUERZO ALUMNOS 4B-4º M'!G49,\"\")","v":"Curry de garbanzos con durazno"},null,{"$f":"IF('ALMUERZO ALUMNOS 4B-4º M'!I49<>\"\",'ALMUERZO ALUMNOS 4B-4º M'!I49,\"\")","v":"Guiso de acelga"},null,{"$f":"IF('ALMUERZO ALUMNOS 4B-4º M'!K49<>\"\",'ALMUERZO ALUMNOS 4B-4º M'!K49,\"\")","v":"Salsa boloñesa soya"}]
[null,null,{"$f":"IF('ALMUERZO ALUMNOS 4B-4º M'!C50<>\"\",'ALMUERZO ALUMNOS 4B-4º M'!C50,\"\")","v":"Charquican de verduras"},null,{"$f":"IF('ALMUERZO ALUMNOS 4B-4º M'!E50<>\"\",'ALMUERZO ALUMNOS 4B-4º M'!E50,\"\")","v":"Porotos con riendas"},null,{"$f":"IF('ALMUERZO ALUMNOS 4B-4º M'!G50<>\"\",'ALMUERZO ALUMNOS 4B-4º M'!G50,\"\")","v":"Arroz blanco y ciboulette"},null,{"$f":"IF('ALMUERZO ALUMNOS 4B-4º M'!I50<>\"\",'ALMUERZO ALUMNOS 4B-4º M'!I50,\"\")","v":"Papas rústicas"},null,{"$f":"IF('ALMUERZO ALUMNOS 4B-4º M'!K50<>\"\",'ALMUERZO ALUMNOS 4B-4º M'!K50,\"\")","v":"Spaghetti"}]
[]
[null,"Dieta",{"$f":"IF('ALMUERZO ALUMNOS 4B-4º M'!C52<>\"\",'ALMUERZO ALUMNOS 4B-4º M'!C52,\"\")","v":"Pollo asado"},null,{"$f":"IF('ALMUERZO ALUMNOS 4B-4º M'!E52<>\"\",'ALMUERZO ALUMNOS 4B-4º M'!E52,\"\")","v":"Churrasco a la plancha"},null,{"$f":"IF('ALMUERZO ALUMNOS 4B-4º M'!G52<>\"\",'ALMUERZO ALUMNOS 4B-4º M'!G52,\"\")","v":"Carne asada"},null,{"$f":"IF('ALMUERZO ALUMNOS 4B-4º M'!I52<>\"\",'ALMUERZO ALUMNOS 4B-4º M'!I52,\"\")","v":"Pescado al horno"},null,{"$f":"IF('ALMUERZO ALUMNOS 4B-4º M'!K52<>\"\",'ALMUERZO ALUMNOS 4B-4º M'!K52,\"\")","v":"Escalopa a la plancha"}]
[null,null,{"$f":"IF('ALMUERZO ALUMNOS 4B-4º M'!C53<>\"\",'ALMUERZO ALUMNOS 4B-4º M'!C53,\"\")","v":"Espirales"},null,{"$f":"IF('ALMUERZO ALUMNOS 4B-4º M'!E53<>\"\",'ALMUERZO ALUMNOS 4B-4º M'!E53,\"\")","v":"Arroz perla"},null,{"$f":"IF('ALMUERZO ALUMNOS 4B-4º M'!G53<>\"\",'ALMUERZO ALUMNOS 4B-4º M'!G53,\"\")","v":"Papas cocidas"},null,{"$f":"IF('ALMUERZO ALUMNOS 4B-4º M'!I53<>\"\",'ALMUERZO ALUMNOS 4B-4º M'!I53,\"\")","v":"Arroz blanco"},null,{"$f":"IF('ALMUERZO ALUMNOS 4B-4º M'!K53<>\"\",'ALMUERZO ALUMNOS 4B-4º M'!K53,\"\")","v":"Espirales"}]
[]
[null,"Bar de Postres",{"$f":"IF('ALMUERZO ALUMNOS 4B-4º M'!C55<>\"\",'ALMUERZO ALUMNOS 4B-4º M'!C55,\"\")","v":"Jalea"},null,{"$f":"IF('ALMUERZO ALUMNOS 4B-4º M'!E55<>\"\",'ALMUERZO ALUMNOS 4B-4º M'!E55,\"\")","v":"Jalea"},null,{"$f":"IF('ALMUERZO ALUMNOS 4B-4º M'!G55<>\"\",'ALMUERZO ALUMNOS 4B-4º M'!G55,\"\")","v":"Jalea"},null,{"$f":"IF('ALMUERZO ALUMNOS 4B-4º M'!I55<>\"\",'ALMUERZO ALUMNOS 4B-4º M'!I55,\"\")","v":"Jalea"},null,{"$f":"IF('ALMUERZO ALUMNOS 4B-4º M'!K55<>\"\",'ALMUERZO ALUMNOS 4B-4º M'!K55,\"\")","v":"Jalea"}]
[null,null,{"$f":"IF('ALMUERZO ALUMNOS 4B-4º M'!C56<>\"\",'ALMUERZO ALUMNOS 4B-4º M'!C56,\"\")","v":"Sémola con leche"},null,{"$f":"IF('ALMUERZO ALUMNOS 4B-4º M'!E56<>\"\",'ALMUERZO ALUMNOS 4B-4º M'!E56,\"\")","v":"Mousse"},null,{"$f":"IF('ALMUERZO ALUMNOS 4B-4º M'!G56<>\"\",'ALMUERZO ALUMNOS 4B-4º M'!G56,\"\")","v":"Arroz con leche"},null,{"$f":"IF('ALMUERZO ALUMNOS 4B-4º M'!I56<>\"\",'ALMUERZO ALUMNOS 4B-4º M'!I56,\"\")","v":"Molde maicena c/ ss caramelo"},null,{"$f":"IF('ALMUERZO ALUMNOS 4B-4º M'!K56<>\"\",'ALMUERZO ALUMNOS 4B-4º M'!K56,\"\")","v":"Helado"}]
[null,null,{"$f":"IF('ALMUERZO ALUMNOS 4B-4º M'!C57<>\"\",'ALMUERZO ALUMNOS 4B-4º M'!C57,\"\")","v":"Fruta natural de la estación"}," ",{"$f":"IF('ALMUERZO ALUMNOS 4B-4º M'!E57<>\"\",'ALMUERZO ALUMNOS 4B-4º M'!E57,\"\")","v":"Fruta natural de la estación"}," ",{"$f":"IF('ALMUERZO ALUMNOS 4B-4º M'!G57<>\"\",'ALMUERZO ALUMNOS 4B-4º M'!G57,\"\")","v":"Fruta natural de la estación"}," ",{"$f":"IF('ALMUERZO ALUMNOS 4B-4º M'!I57<>\"\",'ALMUERZO ALUMNOS 4B-4º M'!I57,\"\")","v":"Fruta natural de la estación"}," ",{"$f":"IF('ALMUERZO ALUMNOS 4B-4º M'!K57<>\"\",'ALMUERZO ALUMNOS 4B-4º M'!K57,\"\")","v":"Fruta natural de la estación"}," "]
[]
[null,{"$f":"'ALMUERZO ALUMNOS 4B-4º M'!B59","v":"SEMANA 03"},{"$f":"'ALMUERZO ALUMNOS 4B-4º M'!C59","v":"2022-06-13"},{"$f":"'ALMUERZO ALUMNOS 4B-4º M'!D59","v":"RAC"},{"$f":"'ALMUERZO ALUMNOS 4B-4º M'!E59","v":"2022-06-14"},{"$f":"'ALMUERZO ALUMNOS 4B-4º M'!F59","v":"RAC"},{"$f":"'ALMUERZO ALUMNOS 4B-4º M'!G59","v":"2022-06-15"},{"$f":"'ALMUERZO ALUMNOS 4B-4º M'!H59","v":"RAC"},{"$f":"'ALMUERZO ALUMNOS 4B-4º M'!I59","v":"2022-06-16"},{"$f":"'ALMUERZO ALUMNOS 4B-4º M'!J59","v":"RAC"},{"$f":"'ALMUERZO ALUMNOS 4B-4º M'!K59","v":"2022-06-17"},{"$f":"'ALMUERZO ALUMNOS 4B-4º M'!L59","v":"RAC"}]
[]
[null,"Sopa",{"$f":"IF('ALMUERZO ALUMNOS 4B-4º M'!C61<>\"\",'ALMUERZO ALUMNOS 4B-4º M'!C61,\"\")","v":"Sopa de pollo c/arroz"}," ",{"$f":"IF('ALMUERZO ALUMNOS 4B-4º M'!E61<>\"\",'ALMUERZO ALUMNOS 4B-4º M'!E61,\"\")","v":"Consomé de ave"}," ",{"$f":"IF('ALMUERZO ALUMNOS 4B-4º M'!G61<>\"\",'ALMUERZO ALUMNOS 4B-4º M'!G61,\"\")","v":"Crema de esparrago"}," ",{"$f":"IF('ALMUERZO ALUMNOS 4B-4º M'!I61<>\"\",'ALMUERZO ALUMNOS 4B-4º M'!I61,\"\")","v":"Sopa de carne c/caracolitos"}," ",{"$f":"IF('ALMUERZO ALUMNOS 4B-4º M'!K61<>\"\",'ALMUERZO ALUMNOS 4B-4º M'!K61,\"\")","v":"Consome de vacuno"}," "]
[null,null," "," "," "," "," "," "," "," "," "," "]
[null,"Salad Bar",{"$f":"IF('ALMUERZO ALUMNOS 4B-4º M'!C63<>\"\",'ALMUERZO ALUMNOS 4B-4º M'!C63,\"\")","v":"Lechuga"},null,{"$f":"IF('ALMUERZO ALUMNOS 4B-4º M'!E63<>\"\",'ALMUERZO ALUMNOS 4B-4º M'!E63,\"\")","v":"Repollo mix"},null,{"$f":"IF('ALMUERZO ALUMNOS 4B-4º M'!G63<>\"\",'ALMUERZO ALUMNOS 4B-4º M'!G63,\"\")","v":"Lechuga"},null,{"$f":"IF('ALMUERZO ALUMNOS 4B-4º M'!I63<>\"\",'ALMUERZO ALUMNOS 4B-4º M'!I63,\"\")","v":"Repollo"},null,{"$f":"IF('ALMUERZO ALUMNOS 4B-4º M'!K63<>\"\",'ALMUERZO ALUMNOS 4B-4º M'!K63,\"\")","v":"Lechuga"}]
[null,null,{"$f":"IF('ALMUERZO ALUMNOS 4B-4º M'!C64<>\"\",'ALMUERZO ALUMNOS 4B-4º M'!C64,\"\")","v":"Betarraga"},null,{"$f":"IF('ALMUERZO ALUMNOS 4B-4º M'!E64<>\"\",'ALMUERZO ALUMNOS 4B-4º M'!E64,\"\")","v":"Pepino"},null,{"$f":"IF('ALMUERZO ALUMNOS 4B-4º M'!G64<>\"\",'ALMUERZO ALUMNOS 4B-4º M'!G64,\"\")","v":"Cebolla"},null,{"$f":"IF('ALMUERZO ALUMNOS 4B-4º M'!I64<>\"\",'ALMUERZO ALUMNOS 4B-4º M'!I64,\"\")","v":"Acelga"},null,{"$f":"IF('ALMUERZO ALUMNOS 4B-4º M'!K64<>\"\",'ALMUERZO ALUMNOS 4B-4º M'!K64,\"\")","v":"Tomate"}]
[null,null,{"$f":"IF('ALMUERZO ALUMNOS 4B-4º M'!C65<>\"\",'ALMUERZO ALUMNOS 4B-4º M'!C65,\"\")","v":"Jardinera"},null,{"$f":"IF('ALMUERZO ALUMNOS 4B-4º M'!E65<>\"\",'ALMUERZO ALUMNOS 4B-4º M'!E65,\"\")","v":"Zanahoria"},null,{"$f":"IF('ALMUERZO ALUMNOS 4B-4º M'!G65<>\"\",'ALMUERZO ALUMNOS 4B-4º M'!G65,\"\")","v":"Tomate"},null,{"$f":"IF('ALMUERZO ALUMNOS 4B-4º M'!I65<>\"\",'ALMUERZO ALUMNOS 4B-4º M'!I65,\"\")","v":"Betarraga"},null,{"$f":"IF('ALMUERZO ALUMNOS 4B-4º M'!K65<>\"\",'ALMUERZO ALUMNOS 4B-4º M'!K65,\"\")","v":"Cebolla"}]
[]
[null,"Alternativa 1",{"$f":"IF('ALMUERZO ALUMNOS 4B-4º M'!C67<>\"\",'ALMUERZO ALUMNOS 4B-4º M'!C67,\"\")","v":"Ajiaco "},null,{"$f":"IF('ALMUERZO ALUMNOS 4B-4º M'!E67<>\"\",'ALMUERZO ALUMNOS 4B-4º M'!E67,\"\")","v":"Huevo frito"},null,{"$f":"IF('ALMUERZO ALUMNOS 4B-4º M'!G67<>\"\",'ALMUERZO ALUMNOS 4B-4º M'!G67,\"\")","v":"Pollo arvejado"},null,{"$f":"IF('ALMUERZO ALUMNOS 4B-4º M'!I67<>\"\",'ALMUERZO ALUMNOS 4B-4º M'!I67,\"\")","v":"Vienesa"},null,{"$f":"IF('ALMUERZO ALUMNOS 4B-4º M'!K67<>\"\",'ALMUERZO ALUMNOS 4B-4º M'!K67,\"\")","v":"Pech de pollo apanada"}]
[null,null,{"$f":"IF('ALMUERZO ALUMNOS 4B-4º M'!C68<>\"\",'ALMUERZO ALUMNOS 4B-4º M'!C68,\"\")","v":" "},null,{"$f":"IF('ALMUERZO ALUMNOS 4B-4º M'!E68<>\"\",'ALMUERZO ALUMNOS 4B-4º M'!E68,\"\")","v":"Charquicán de verduras"},null,{"$f":"IF('ALMUERZO ALUMNOS 4B-4º M'!G68<>\"\",'ALMUERZO ALUMNOS 4B-4º M'!G68,\"\")","v":"Arroz perla"},null,{"$f":"IF('ALMUERZO ALUMNOS 4B-4º M'!I68<>\"\",'ALMUERZO ALUMNOS 4B-4º M'!I68,\"\")","v":"Lentejas guisadas"},null,{"$f":"IF('ALMUERZO ALUMNOS 4B-4º M'!K68<>\"\",'ALMUERZO ALUMNOS 4B-4º M'!K68,\"\")","v":"Arroz primavera"}]
[]
[null,"Alternativa 2",{"$f":"IF('ALMUERZO ALUMNOS 4B-4º M'!C70<>\"\",'ALMUERZO ALUMNOS 4B-4º M'!C70,\"\")","v":"Salsa bontue"},null,{"$f":"IF('ALMUERZO ALUMNOS 4B-4º M'!E70<>\"\",'ALMUERZO ALUMNOS 4B-4º M'!E70,\"\")","v":"Escalopa Jamon Queso"},null,{"$f":"IF('ALMUERZO ALUMNOS 4B-4º M'!G70<>\"\",'ALMUERZO ALUMNOS 4B-4º M'!G70,\"\")","v":"Asado alemán"},null,{"$f":"IF('ALMUERZO ALUMNOS 4B-4º M'!I70<>\"\",'ALMUERZO ALUMNOS 4B-4º M'!I70,\"\")","v":"Salsa boloñesa"},null,{"$f":"IF('ALMUERZO ALUMNOS 4B-4º M'!K70<>\"\",'ALMUERZO ALUMNOS 4B-4º M'!K70,\"\")","v":"Pulpa en salsa española"}]
[null,null,{"$f":"IF('ALMUERZO ALUMNOS 4B-4º M'!C71<>\"\",'ALMUERZO ALUMNOS 4B-4º M'!C71,\"\")","v":"Quifaros"},null,{"$f":"IF('ALMUERZO ALUMNOS 4B-4º M'!E71<>\"\",'ALMUERZO ALUMNOS 4B-4º M'!E71,\"\")","v":"Arroz graneado"},null,{"$f":"IF('ALMUERZO ALUMNOS 4B-4º M'!G71<>\"\",'ALMUERZO ALUMNOS 4B-4º M'!G71,\"\")","v":"Puré de papas"},null,{"$f":"IF('ALMUERZO ALUMNOS 4B-4º M'!I71<>\"\",'ALMUERZO ALUMNOS 4B-4º M'!I71,\"\")","v":"Spaghetti"},null,{"$f":"IF('ALMUERZO ALUMNOS 4B-4º M'!K71<>\"\",'ALMUERZO ALUMNOS 4B-4º M'!K71,\"\")","v":"Papas fritas"}]
[]
[null,"Menú Hipocalórico",{"$f":"IF('ALMUERZO ALUMNOS 4B-4º M'!C73<>\"\",'ALMUERZO ALUMNOS 4B-4º M'!C73,\"\")","v":"Croqueta de atún"},null,{"$f":"IF('ALMUERZO ALUMNOS 4B-4º M'!E73<>\"\",'ALMUERZO ALUMNOS 4B-4º M'!E73,\"\")","v":"Huevo cavancha"},null,{"$f":"IF('ALMUERZO ALUMNOS 4B-4º M'!G73<>\"\",'ALMUERZO ALUMNOS 4B-4º M'!G73,\"\")","v":"Carne al jugo"},null,{"$f":"IF('ALMUERZO ALUMNOS 4B-4º M'!I73<>\"\",'ALMUERZO ALUMNOS 4B-4º M'!I73,\"\")","v":"Tomate reina"},null,{"$f":"IF('ALMUERZO ALUMNOS 4B-4º M'!K73<>\"\",'ALMUERZO ALUMNOS 4B-4º M'!K73,\"\")","v":"Omelette de jamón con verduras"}]
[null,null,{"$f":"IF('ALMUERZO ALUMNOS 4B-4º M'!C74<>\"\",'ALMUERZO ALUMNOS 4B-4º M'!C74,\"\")","v":"Ensaladas surtidas"},null,{"$f":"IF('ALMUERZO ALUMNOS 4B-4º M'!E74<>\"\",'ALMUERZO ALUMNOS 4B-4º M'!E74,\"\")","v":"Ensaladas surtidas"},null,{"$f":"IF('ALMUERZO ALUMNOS 4B-4º M'!G74<>\"\",'ALMUERZO ALUMNOS 4B-4º M'!G74,\"\")","v":"Ensaladas surtidas"},null,{"$f":"IF('ALMUERZO ALUMNOS 4B-4º M'!I74<>\"\",'ALMUERZO ALUMNOS 4B-4º M'!I74,\"\")","v":"Ensaladas surtidas"},null,{"$f":"IF('ALMUERZO ALUMNOS 4B-4º M'!K74<>\"\",'ALMUERZO ALUMNOS 4B-4º M'!K74,\"\")","v":"Ensaladas surtidas"}]
[]
[null,"Vegetariano",{"$f":"IF('ALMUERZO ALUMNOS 4B-4º M'!C76<>\"\",'ALMUERZO ALUMNOS 4B-4º M'!C76,\"\")","v":"Panqueque de acelga "},null,{"$f":"IF('ALMUERZO ALUMNOS 4B-4º M'!E76<>\"\",'ALMUERZO ALUMNOS 4B-4º M'!E76,\"\")","v":"Hamburguesa de garbanzo"},null,{"$f":"IF('ALMUERZO ALUMNOS 4B-4º M'!G76<>\"\",'ALMUERZO ALUMNOS 4B-4º M'!G76,\"\")","v":"Lasaña de verduras"},null,{"$f":"IF('ALMUERZO ALUMNOS 4B-4º M'!I76<>\"\",'ALMUERZO ALUMNOS 4B-4º M'!I76,\"\")","v":"Crutones "},null,{"$f":"IF('ALMUERZO ALUMNOS 4B-4º M'!K76<>\"\",'ALMUERZO ALUMNOS 4B-4º M'!K76,\"\")","v":"Panqueque de acelga "}]
[null,null,{"$f":"IF('ALMUERZO ALUMNOS 4B-4º M'!C77<>\"\",'ALMUERZO ALUMNOS 4B-4º M'!C77,\"\")","v":"Papas fritas"},null,{"$f":"IF('ALMUERZO ALUMNOS 4B-4º M'!E77<>\"\",'ALMUERZO ALUMNOS 4B-4º M'!E77,\"\")","v":"Charquicán de verduras"},null,{"$f":"IF('ALMUERZO ALUMNOS 4B-4º M'!G77<>\"\",'ALMUERZO ALUMNOS 4B-4º M'!G77,\"\")","v":" "},null,{"$f":"IF('ALMUERZO ALUMNOS 4B-4º M'!I77<>\"\",'ALMUERZO ALUMNOS 4B-4º M'!I77,\"\")","v":"Lentejas guisadas"},null,{"$f":"IF('ALMUERZO ALUMNOS 4B-4º M'!K77<>\"\",'ALMUERZO ALUMNOS 4B-4º M'!K77,\"\")","v":"Papas fritas"}]
[]
[null,"Dieta",{"$f":"IF('ALMUERZO ALUMNOS 4B-4º M'!C79<>\"\",'ALMUERZO ALUMNOS 4B-4º M'!C79,\"\")","v":"Carne al jugo"},null,{"$f":"IF('ALMUERZO ALUMNOS 4B-4º M'!E79<>\"\",'ALMUERZO ALUMNOS 4B-4º M'!E79,\"\")","v":"Filetillo de pollo grillé"},null,{"$f":"IF('ALMUERZO ALUMNOS 4B-4º M'!G79<>\"\",'ALMUERZO ALUMNOS 4B-4º M'!G79,\"\")","v":"Juliana de ave"},null,{"$f":"IF('ALMUERZO ALUMNOS 4B-4º M'!I79<>\"\",'ALMUERZO ALUMNOS 4B-4º M'!I79,\"\")","v":"Pescado al horno"},null,{"$f":"IF('ALMUERZO ALUMNOS 4B-4º M'!K79<>\"\",'ALMUERZO ALUMNOS 4B-4º M'!K79,\"\")","v":"Carne asada"}]
[null,null,{"$f":"IF('ALMUERZO ALUMNOS 4B-4º M'!C80<>\"\",'ALMUERZO ALUMNOS 4B-4º M'!C80,\"\")","v":"Spaghetti"},null,{"$f":"IF('ALMUERZO ALUMNOS 4B-4º M'!E80<>\"\",'ALMUERZO ALUMNOS 4B-4º M'!E80,\"\")","v":"Papas cocidas"},null,{"$f":"IF('ALMUERZO ALUMNOS 4B-4º M'!G80<>\"\",'ALMUERZO ALUMNOS 4B-4º M'!G80,\"\")","v":"Arroz blanco"},null,{"$f":"IF('ALMUERZO ALUMNOS 4B-4º M'!I80<>\"\",'ALMUERZO ALUMNOS 4B-4º M'!I80,\"\")","v":"Papas salteadas"},null,{"$f":"IF('ALMUERZO ALUMNOS 4B-4º M'!K80<>\"\",'ALMUERZO ALUMNOS 4B-4º M'!K80,\"\")","v":"Arroz blanco"}]
[]
[null,"Bar de Postres",{"$f":"IF('ALMUERZO ALUMNOS 4B-4º M'!C82<>\"\",'ALMUERZO ALUMNOS 4B-4º M'!C82,\"\")","v":"Jalea"},null,{"$f":"IF('ALMUERZO ALUMNOS 4B-4º M'!E82<>\"\",'ALMUERZO ALUMNOS 4B-4º M'!E82,\"\")","v":"Jalea"},null,{"$f":"IF('ALMUERZO ALUMNOS 4B-4º M'!G82<>\"\",'ALMUERZO ALUMNOS 4B-4º M'!G82,\"\")","v":"Jalea"},null,{"$f":"IF('ALMUERZO ALUMNOS 4B-4º M'!I82<>\"\",'ALMUERZO ALUMNOS 4B-4º M'!I82,\"\")","v":"Jalea"},null,{"$f":"IF('ALMUERZO ALUMNOS 4B-4º M'!K82<>\"\",'ALMUERZO ALUMNOS 4B-4º M'!K82,\"\")","v":"Jalea"}]
[null,null,{"$f":"IF('ALMUERZO ALUMNOS 4B-4º M'!C83<>\"\",'ALMUERZO ALUMNOS 4B-4º M'!C83,\"\")","v":"Leche asada"},null,{"$f":"IF('ALMUERZO ALUMNOS 4B-4º M'!E83<>\"\",'ALMUERZO ALUMNOS 4B-4º M'!E83,\"\")","v":"Helado"},null,{"$f":"IF('ALMUERZO ALUMNOS 4B-4º M'!G83<>\"\",'ALMUERZO ALUMNOS 4B-4º M'!G83,\"\")","v":"Flan c/ ss de chocolate"},null,{"$f":"IF('ALMUERZO ALUMNOS 4B-4º M'!I83<>\"\",'ALMUERZO ALUMNOS 4B-4º M'!I83,\"\")","v":"Natilla"},null,{"$f":"IF('ALMUERZO ALUMNOS 4B-4º M'!K83<>\"\",'ALMUERZO ALUMNOS 4B-4º M'!K83,\"\")","v":"Leche nevada"}]
[null,null,{"$f":"IF('ALMUERZO ALUMNOS 4B-4º M'!C84<>\"\",'ALMUERZO ALUMNOS 4B-4º M'!C84,\"\")","v":"Fruta natural de la estación"}," ",{"$f":"IF('ALMUERZO ALUMNOS 4B-4º M'!E84<>\"\",'ALMUERZO ALUMNOS 4B-4º M'!E84,\"\")","v":"Fruta natural de la estación"}," ",{"$f":"IF('ALMUERZO ALUMNOS 4B-4º M'!G84<>\"\",'ALMUERZO ALUMNOS 4B-4º M'!G84,\"\")","v":"Fruta natural de la estación"}," ",{"$f":"IF('ALMUERZO ALUMNOS 4B-4º M'!I84<>\"\",'ALMUERZO ALUMNOS 4B-4º M'!I84,\"\")","v":"Fruta natural de la estación"}," ",{"$f":"IF('ALMUERZO ALUMNOS 4B-4º M'!K84<>\"\",'ALMUERZO ALUMNOS 4B-4º M'!K84,\"\")","v":"Fruta natural de la estación"}," "]
[]
[null,{"$f":"'ALMUERZO ALUMNOS 4B-4º M'!B86","v":"SEMANA 04"},{"$f":"'ALMUERZO ALUMNOS 4B-4º M'!C86","v":"2022-06-20"},{"$f":"'ALMUERZO ALUMNOS 4B-4º M'!D86","v":"RAC"},{"$f":"'ALMUERZO ALUMNOS 4B-4º M'!E86","v":"2022-06-21"},{"$f":"'ALMUERZO ALUMNOS 4B-4º M'!F86","v":"RAC"},{"$f":"'ALMUERZO ALUMNOS 4B-4º M'!G86","v":"2022-06-22"},{"$f":"'ALMUERZO ALUMNOS 4B-4º M'!H86","v":"RAC"},{"$f":"'ALMUERZO ALUMNOS 4B-4º M'!I86","v":"2022-06-23"},{"$f":"'ALMUERZO ALUMNOS 4B-4º M'!J86","v":"RAC"},{"$f":"'ALMUERZO ALUMNOS 4B-4º M'!K86","v":"2022-06-24"},{"$f":"'ALMUERZO ALUMNOS 4B-4º M'!L86","v":"RAC"}]
[]
[null,"Sopa",{"$f":"IF('ALMUERZO ALUMNOS 4B-4º M'!C88<>\"\",'ALMUERZO ALUMNOS 4B-4º M'!C88,\"\")","v":"Consome de ave"}," ",{"$f":"IF('ALMUERZO ALUMNOS 4B-4º M'!E88<>\"\",'ALMUERZO ALUMNOS 4B-4º M'!E88,\"\")","v":"Sopa de pollo c/arroz"}," ",{"$f":"IF('ALMUERZO ALUMNOS 4B-4º M'!G88<>\"\",'ALMUERZO ALUMNOS 4B-4º M'!G88,\"\")","v":"Crema de choclo"}," ",{"$f":"IF('ALMUERZO ALUMNOS 4B-4º M'!I88<>\"\",'ALMUERZO ALUMNOS 4B-4º M'!I88,\"\")","v":"Consomé de vacuno"}," ",{"$f":"IF('ALMUERZO ALUMNOS 4B-4º M'!K88<>\"\",'ALMUERZO ALUMNOS 4B-4º M'!K88,\"\")","v":"Crema de zapallo"}," "]
[null,null," "," "," "," "," "," "," "," "," "," "]
[null,"Salad Bar",{"$f":"IF('ALMUERZO ALUMNOS 4B-4º M'!C90<>\"\",'ALMUERZO ALUMNOS 4B-4º M'!C90,\"\")","v":"Repollo"},null,{"$f":"IF('ALMUERZO ALUMNOS 4B-4º M'!E90<>\"\",'ALMUERZO ALUMNOS 4B-4º M'!E90,\"\")","v":"Lechuga"},null,{"$f":"IF('ALMUERZO ALUMNOS 4B-4º M'!G90<>\"\",'ALMUERZO ALUMNOS 4B-4º M'!G90,\"\")","v":"Repollo mix"},null,{"$f":"IF('ALMUERZO ALUMNOS 4B-4º M'!I90<>\"\",'ALMUERZO ALUMNOS 4B-4º M'!I90,\"\")","v":"Lechuga"},null,{"$f":"IF('ALMUERZO ALUMNOS 4B-4º M'!K90<>\"\",'ALMUERZO ALUMNOS 4B-4º M'!K90,\"\")","v":"Repollo mix"}]
[null,null,{"$f":"IF('ALMUERZO ALUMNOS 4B-4º M'!C91<>\"\",'ALMUERZO ALUMNOS 4B-4º M'!C91,\"\")","v":"Tomate"},null,{"$f":"IF('ALMUERZO ALUMNOS 4B-4º M'!E91<>\"\",'ALMUERZO ALUMNOS 4B-4º M'!E91,\"\")","v":"Choclo"},null,{"$f":"IF('ALMUERZO ALUMNOS 4B-4º M'!G91<>\"\",'ALMUERZO ALUMNOS 4B-4º M'!G91,\"\")","v":"Betarraga"},null,{"$f":"IF('ALMUERZO ALUMNOS 4B-4º M'!I91<>\"\",'ALMUERZO ALUMNOS 4B-4º M'!I91,\"\")","v":"Tomate"},null,{"$f":"IF('ALMUERZO ALUMNOS 4B-4º M'!K91<>\"\",'ALMUERZO ALUMNOS 4B-4º M'!K91,\"\")","v":"Zanahoria"}]
[null,null,{"$f":"IF('ALMUERZO ALUMNOS 4B-4º M'!C92<>\"\",'ALMUERZO ALUMNOS 4B-4º M'!C92,\"\")","v":"Pepino"},null,{"$f":"IF('ALMUERZO ALUMNOS 4B-4º M'!E92<>\"\",'ALMUERZO ALUMNOS 4B-4º M'!E92,\"\")","v":"Cebolla"},null,{"$f":"IF('ALMUERZO ALUMNOS 4B-4º M'!G92<>\"\",'ALMUERZO ALUMNOS 4B-4º M'!G92,\"\")","v":"Zanahoria"},null,{"$f":"IF('ALMUERZO ALUMNOS 4B-4º M'!I92<>\"\",'ALMUERZO ALUMNOS 4B-4º M'!I92,\"\")","v":"Zapallito italiano"},null,{"$f":"IF('ALMUERZO ALUMNOS 4B-4º M'!K92<>\"\",'ALMUERZO ALUMNOS 4B-4º M'!K92,\"\")","v":"Cebolla"}]
[]
[null,"Alternativa 1",{"$f":"IF('ALMUERZO ALUMNOS 4B-4º M'!C94<>\"\",'ALMUERZO ALUMNOS 4B-4º M'!C94,\"\")","v":"Salteado de vacuno"},null,{"$f":"IF('ALMUERZO ALUMNOS 4B-4º M'!E94<>\"\",'ALMUERZO ALUMNOS 4B-4º M'!E94,\"\")","v":"Guisado de cerdo"},null,{"$f":"IF('ALMUERZO ALUMNOS 4B-4º M'!G94<>\"\",'ALMUERZO ALUMNOS 4B-4º M'!G94,\"\")","v":"Chorizo"},null,{"$f":"IF('ALMUERZO ALUMNOS 4B-4º M'!I94<>\"\",'ALMUERZO ALUMNOS 4B-4º M'!I94,\"\")","v":"Cazuela de albóndigas"},null,{"$f":"IF('ALMUERZO ALUMNOS 4B-4º M'!K94<>\"\",'ALMUERZO ALUMNOS 4B-4º M'!K94,\"\")","v":"Pollo asado"}]
[null,null,{"$f":"IF('ALMUERZO ALUMNOS 4B-4º M'!C95<>\"\",'ALMUERZO ALUMNOS 4B-4º M'!C95,\"\")","v":"Arroz"},null,{"$f":"IF('ALMUERZO ALUMNOS 4B-4º M'!E95<>\"\",'ALMUERZO ALUMNOS 4B-4º M'!E95,\"\")","v":"Papas salteadas"},null,{"$f":"IF('ALMUERZO ALUMNOS 4B-4º M'!G95<>\"\",'ALMUERZO ALUMNOS 4B-4º M'!G95,\"\")","v":"Porotos con riendas"},null,{"$f":"IF('ALMUERZO ALUMNOS 4B-4º M'!I95<>\"\",'ALMUERZO ALUMNOS 4B-4º M'!I95,\"\")","v":" "},null,{"$f":"IF('ALMUERZO ALUMNOS 4B-4º M'!K95<>\"\",'ALMUERZO ALUMNOS 4B-4º M'!K95,\"\")","v":"Papas fritas"}]
[]
[null,"Alternativa 2",{"$f":"IF('ALMUERZO ALUMNOS 4B-4º M'!C97<>\"\",'ALMUERZO ALUMNOS 4B-4º M'!C97,\"\")","v":"Salsa pomodoro"},null,{"$f":"IF('ALMUERZO ALUMNOS 4B-4º M'!E97<>\"\",'ALMUERZO ALUMNOS 4B-4º M'!E97,\"\")","v":"Hamburguesa Casera"},null,{"$f":"IF('ALMUERZO ALUMNOS 4B-4º M'!G97<>\"\",'ALMUERZO ALUMNOS 4B-4º M'!G97,\"\")","v":"Pescado atomatado"},null,{"$f":"IF('ALMUERZO ALUMNOS 4B-4º M'!I97<>\"\",'ALMUERZO ALUMNOS 4B-4º M'!I97,\"\")","v":"Juliana de ave arvejada"},null,{"$f":"IF('ALMUERZO ALUMNOS 4B-4º M'!K97<>\"\",'ALMUERZO ALUMNOS 4B-4º M'!K97,\"\")","v":"Carne al horno"}]
[null,null,{"$f":"IF('ALMUERZO ALUMNOS 4B-4º M'!C98<>\"\",'ALMUERZO ALUMNOS 4B-4º M'!C98,\"\")","v":"Raviolis"},null,{"$f":"IF('ALMUERZO ALUMNOS 4B-4º M'!E98<>\"\",'ALMUERZO ALUMNOS 4B-4º M'!E98,\"\")","v":"Verduras salteadas"},null,{"$f":"IF('ALMUERZO ALUMNOS 4B-4º M'!G98<>\"\",'ALMUERZO ALUMNOS 4B-4º M'!G98,\"\")","v":"Arroz graneado"},null,{"$f":"IF('ALMUERZO ALUMNOS 4B-4º M'!I98<>\"\",'ALMUERZO ALUMNOS 4B-4º M'!I98,\"\")","v":"Pure"},null,{"$f":"IF('ALMUERZO ALUMNOS 4B-4º M'!K98<>\"\",'ALMUERZO ALUMNOS 4B-4º M'!K98,\"\")","v":"Verduras salteadas"}]
[]
[null,"Menú Hipocalórico",{"$f":"IF('ALMUERZO ALUMNOS 4B-4º M'!C100<>\"\",'ALMUERZO ALUMNOS 4B-4º M'!C100,\"\")","v":"Tomate reina"},null,{"$f":"IF('ALMUERZO ALUMNOS 4B-4º M'!E100<>\"\",'ALMUERZO ALUMNOS 4B-4º M'!E100,\"\")","v":"Hamburguesa casera"},null,{"$f":"IF('ALMUERZO ALUMNOS 4B-4º M'!G100<>\"\",'ALMUERZO ALUMNOS 4B-4º M'!G100,\"\")","v":"Pescado al horno"},null,{"$f":"IF('ALMUERZO ALUMNOS 4B-4º M'!I100<>\"\",'ALMUERZO ALUMNOS 4B-4º M'!I100,\"\")","v":"Molde de atún "},null,{"$f":"IF('ALMUERZO ALUMNOS 4B-4º M'!K100<>\"\",'ALMUERZO ALUMNOS 4B-4º M'!K100,\"\")","v":"Pollo asado"}]
[null,null,{"$f":"IF('ALMUERZO ALUMNOS 4B-4º M'!C101<>\"\",'ALMUERZO ALUMNOS 4B-4º M'!C101,\"\")","v":"Ensaladas surtidas"},null,{"$f":"IF('ALMUERZO ALUMNOS 4B-4º M'!E101<>\"\",'ALMUERZO ALUMNOS 4B-4º M'!E101,\"\")","v":"Ensaladas surtidas"},null,{"$f":"IF('ALMUERZO ALUMNOS 4B-4º M'!G101<>\"\",'ALMUERZO ALUMNOS 4B-4º M'!G101,\"\")","v":"Ensaladas surtidas"},null,{"$f":"IF('ALMUERZO ALUMNOS 4B-4º M'!I101<>\"\",'ALMUERZO ALUMNOS 4B-4º M'!I101,\"\")","v":"Ensaladas surtidas"},null,{"$f":"IF('ALMUERZO ALUMNOS 4B-4º M'!K101<>\"\",'ALMUERZO ALUMNOS 4B-4º M'!K101,\"\")","v":"Ensaladas surtidas"}]
[]
[null,"Vegetariano",{"$f":"IF('ALMUERZO ALUMNOS 4B-4º M'!C103<>\"\",'ALMUERZO ALUMNOS 4B-4º M'!C103,\"\")","v":"Pastel de papas - soya"},null,{"$f":"IF('ALMUERZO ALUMNOS 4B-4º M'!E103<>\"\",'ALMUERZO ALUMNOS 4B-4º M'!E103,\"\")","v":"Salteado thai de vegetales"},null,{"$f":"IF('ALMUERZO ALUMNOS 4B-4º M'!G103<>\"\",'ALMUERZO ALUMNOS 4B-4º M'!G103,\"\")","v":"Crutones"},null,{"$f":"IF('ALMUERZO ALUMNOS 4B-4º M'!I103<>\"\",'ALMUERZO ALUMNOS 4B-4º M'!I103,\"\")","v":"Quiche de champiñon y cebolla"},null,{"$f":"IF('ALMUERZO ALUMNOS 4B-4º M'!K103<>\"\",'ALMUERZO ALUMNOS 4B-4º M'!K103,\"\")","v":"Tortillas de quinoa"}]
[null,null,{"$f":"IF('ALMUERZO ALUMNOS 4B-4º M'!C104<>\"\",'ALMUERZO ALUMNOS 4B-4º M'!C104,\"\")","v":" "},null,{"$f":"IF('ALMUERZO ALUMNOS 4B-4º M'!E104<>\"\",'ALMUERZO ALUMNOS 4B-4º M'!E104,\"\")","v":"Espirales"},null,{"$f":"IF('ALMUERZO ALUMNOS 4B-4º M'!G104<>\"\",'ALMUERZO ALUMNOS 4B-4º M'!G104,\"\")","v":"Porotos con riendas"},null,{"$f":"IF('ALMUERZO ALUMNOS 4B-4º M'!I104<>\"\",'ALMUERZO ALUMNOS 4B-4º M'!I104,\"\")","v":" "},null,{"$f":"IF('ALMUERZO ALUMNOS 4B-4º M'!K104<>\"\",'ALMUERZO ALUMNOS 4B-4º M'!K104,\"\")","v":"Papas leonesas"}]
[]
[null,"Dieta",{"$f":"IF('ALMUERZO ALUMNOS 4B-4º M'!C106<>\"\",'ALMUERZO ALUMNOS 4B-4º M'!C106,\"\")","v":"Hamburguesa al horno"},null,{"$f":"IF('ALMUERZO ALUMNOS 4B-4º M'!E106<>\"\",'ALMUERZO ALUMNOS 4B-4º M'!E106,\"\")","v":"Juliana de ave"},null,{"$f":"IF('ALMUERZO ALUMNOS 4B-4º M'!G106<>\"\",'ALMUERZO ALUMNOS 4B-4º M'!G106,\"\")","v":"Pescado al horno"},null,{"$f":"IF('ALMUERZO ALUMNOS 4B-4º M'!I106<>\"\",'ALMUERZO ALUMNOS 4B-4º M'!I106,\"\")","v":"Carne al jugo"},null,{"$f":"IF('ALMUERZO ALUMNOS 4B-4º M'!K106<>\"\",'ALMUERZO ALUMNOS 4B-4º M'!K106,\"\")","v":"Churrasco a la plancha"}]
[null,null,{"$f":"IF('ALMUERZO ALUMNOS 4B-4º M'!C107<>\"\",'ALMUERZO ALUMNOS 4B-4º M'!C107,\"\")","v":"Espirales"},null,{"$f":"IF('ALMUERZO ALUMNOS 4B-4º M'!E107<>\"\",'ALMUERZO ALUMNOS 4B-4º M'!E107,\"\")","v":"Arroz blanco"},null,{"$f":"IF('ALMUERZO ALUMNOS 4B-4º M'!G107<>\"\",'ALMUERZO ALUMNOS 4B-4º M'!G107,\"\")","v":"Papas salteadas"},null,{"$f":"IF('ALMUERZO ALUMNOS 4B-4º M'!I107<>\"\",'ALMUERZO ALUMNOS 4B-4º M'!I107,\"\")","v":"Spaghetti"},null,{"$f":"IF('ALMUERZO ALUMNOS 4B-4º M'!K107<>\"\",'ALMUERZO ALUMNOS 4B-4º M'!K107,\"\")","v":"Arroz perla"}]
[]
[null,"Bar de Postres",{"$f":"IF('ALMUERZO ALUMNOS 4B-4º M'!C109<>\"\",'ALMUERZO ALUMNOS 4B-4º M'!C109,\"\")","v":"Jalea"},null,{"$f":"IF('ALMUERZO ALUMNOS 4B-4º M'!E109<>\"\",'ALMUERZO ALUMNOS 4B-4º M'!E109,\"\")","v":"Jalea"},null,{"$f":"IF('ALMUERZO ALUMNOS 4B-4º M'!G109<>\"\",'ALMUERZO ALUMNOS 4B-4º M'!G109,\"\")","v":"Jalea"},null,{"$f":"IF('ALMUERZO ALUMNOS 4B-4º M'!I109<>\"\",'ALMUERZO ALUMNOS 4B-4º M'!I109,\"\")","v":"Jalea"},null,{"$f":"IF('ALMUERZO ALUMNOS 4B-4º M'!K109<>\"\",'ALMUERZO ALUMNOS 4B-4º M'!K109,\"\")","v":"Jalea"}]
[null,null,{"$f":"IF('ALMUERZO ALUMNOS 4B-4º M'!C110<>\"\",'ALMUERZO ALUMNOS 4B-4º M'!C110,\"\")","v":"Sémola espejo"},null,{"$f":"IF('ALMUERZO ALUMNOS 4B-4º M'!E110<>\"\",'ALMUERZO ALUMNOS 4B-4º M'!E110,\"\")","v":"Mousse"},null,{"$f":"IF('ALMUERZO ALUMNOS 4B-4º M'!G110<>\"\",'ALMUERZO ALUMNOS 4B-4º M'!G110,\"\")","v":"Cremell"},null,{"$f":"IF('ALMUERZO ALUMNOS 4B-4º M'!I110<>\"\",'ALMUERZO ALUMNOS 4B-4º M'!I110,\"\")","v":"Molde maicena c/ ss caramelo"},null,{"$f":"IF('ALMUERZO ALUMNOS 4B-4º M'!K110<>\"\",'ALMUERZO ALUMNOS 4B-4º M'!K110,\"\")","v":"Helado"}]
[null,null,{"$f":"IF('ALMUERZO ALUMNOS 4B-4º M'!C111<>\"\",'ALMUERZO ALUMNOS 4B-4º M'!C111,\"\")","v":"Fruta natural de la estación"}," ",{"$f":"IF('ALMUERZO ALUMNOS 4B-4º M'!E111<>\"\",'ALMUERZO ALUMNOS 4B-4º M'!E111,\"\")","v":"Fruta natural de la estación"}," ",{"$f":"IF('ALMUERZO ALUMNOS 4B-4º M'!G111<>\"\",'ALMUERZO ALUMNOS 4B-4º M'!G111,\"\")","v":"Fruta natural de la estación"}," ",{"$f":"IF('ALMUERZO ALUMNOS 4B-4º M'!I111<>\"\",'ALMUERZO ALUMNOS 4B-4º M'!I111,\"\")","v":"Fruta natural de la estación"}," ",{"$f":"IF('ALMUERZO ALUMNOS 4B-4º M'!K111<>\"\",'ALMUERZO ALUMNOS 4B-4º M'!K111,\"\")","v":"Fruta natural de la estación"}," "]
[]
[null,{"$f":"'ALMUERZO ALUMNOS 4B-4º M'!B113","v":"SEMANA 05"},{"$f":"'ALMUERZO ALUMNOS 4B-4º M'!C113","v":"2022-06-27"},{"$f":"'ALMUERZO ALUMNOS 4B-4º M'!D113","v":"RAC"},{"$f":"'ALMUERZO ALUMNOS 4B-4º M'!E113","v":"2022-06-28"},{"$f":"'ALMUERZO ALUMNOS 4B-4º M'!F113","v":"RAC"},{"$f":"'ALMUERZO ALUMNOS 4B-4º M'!G113","v":"2022-06-29"},{"$f":"'ALMUERZO ALUMNOS 4B-4º M'!H113","v":"RAC"},{"$f":"'ALMUERZO ALUMNOS 4B-4º M'!I113","v":"2022-06-30"},{"$f":"'ALMUERZO ALUMNOS 4B-4º M'!J113","v":"RAC"},{"$f":"'ALMUERZO ALUMNOS 4B-4º M'!K113","v":"2022-07-01"},{"$f":"'ALMUERZO ALUMNOS 4B-4º M'!L113","v":"RAC"}]
[]
[null,"Sopa",{"$f":"IF('ALMUERZO ALUMNOS 4B-4º M'!C115<>\"\",'ALMUERZO ALUMNOS 4B-4º M'!C115,\"\")","v":"Sopa de pollo c/arroz"}," ",{"$f":"IF('ALMUERZO ALUMNOS 4B-4º M'!E115<>\"\",'ALMUERZO ALUMNOS 4B-4º M'!E115,\"\")","v":"Consomé de ave"}," ",{"$f":"IF('ALMUERZO ALUMNOS 4B-4º M'!G115<>\"\",'ALMUERZO ALUMNOS 4B-4º M'!G115,\"\")","v":"Crema de tomates"}," ",{"$f":"IF('ALMUERZO ALUMNOS 4B-4º M'!I115<>\"\",'ALMUERZO ALUMNOS 4B-4º M'!I115,\"\")","v":"Sopa de carne c/caracolitos"}," ",{"$f":"IF('ALMUERZO ALUMNOS 4B-4º M'!K115<>\"\",'ALMUERZO ALUMNOS 4B-4º M'!K115,\"\")","v":"Consome de vacuno"}," "]
[null,null," "," "," "," "," "," "," "," "," "," "]
[null,"Salad Bar",{"$f":"IF('ALMUERZO ALUMNOS 4B-4º M'!C117<>\"\",'ALMUERZO ALUMNOS 4B-4º M'!C117,\"\")","v":"Lechuga"},null,{"$f":"IF('ALMUERZO ALUMNOS 4B-4º M'!E117<>\"\",'ALMUERZO ALUMNOS 4B-4º M'!E117,\"\")","v":"Acelga - Zanahoria"},null,{"$f":"IF('ALMUERZO ALUMNOS 4B-4º M'!G117<>\"\",'ALMUERZO ALUMNOS 4B-4º M'!G117,\"\")","v":"Lechuga"},null,{"$f":"IF('ALMUERZO ALUMNOS 4B-4º M'!I117<>\"\",'ALMUERZO ALUMNOS 4B-4º M'!I117,\"\")","v":"Repollo mix"},null,{"$f":"IF('ALMUERZO ALUMNOS 4B-4º M'!K117<>\"\",'ALMUERZO ALUMNOS 4B-4º M'!K117,\"\")","v":"Lechuga"}]
[null,null,{"$f":"IF('ALMUERZO ALUMNOS 4B-4º M'!C118<>\"\",'ALMUERZO ALUMNOS 4B-4º M'!C118,\"\")","v":"Tomate"},null,{"$f":"IF('ALMUERZO ALUMNOS 4B-4º M'!E118<>\"\",'ALMUERZO ALUMNOS 4B-4º M'!E118,\"\")","v":"Cebolla"},null,{"$f":"IF('ALMUERZO ALUMNOS 4B-4º M'!G118<>\"\",'ALMUERZO ALUMNOS 4B-4º M'!G118,\"\")","v":"Apio"},null,{"$f":"IF('ALMUERZO ALUMNOS 4B-4º M'!I118<>\"\",'ALMUERZO ALUMNOS 4B-4º M'!I118,\"\")","v":"Tomate"},null,{"$f":"IF('ALMUERZO ALUMNOS 4B-4º M'!K118<>\"\",'ALMUERZO ALUMNOS 4B-4º M'!K118,\"\")","v":"Zanahoria"}]
[null,null,{"$f":"IF('ALMUERZO ALUMNOS 4B-4º M'!C119<>\"\",'ALMUERZO ALUMNOS 4B-4º M'!C119,\"\")","v":"Zapallito italiano"},null,{"$f":"IF('ALMUERZO ALUMNOS 4B-4º M'!E119<>\"\",'ALMUERZO ALUMNOS 4B-4º M'!E119,\"\")","v":"Betarraga"},null,{"$f":"IF('ALMUERZO ALUMNOS 4B-4º M'!G119<>\"\",'ALMUERZO ALUMNOS 4B-4º M'!G119,\"\")","v":"Pepino "},null,{"$f":"IF('ALMUERZO ALUMNOS 4B-4º M'!I119<>\"\",'ALMUERZO ALUMNOS 4B-4º M'!I119,\"\")","v":"Espinaca - Huevo lluvia"},null,{"$f":"IF('ALMUERZO ALUMNOS 4B-4º M'!K119<>\"\",'ALMUERZO ALUMNOS 4B-4º M'!K119,\"\")","v":"Brócoli"}]
[]
[null,"Alternativa 1",{"$f":"IF('ALMUERZO ALUMNOS 4B-4º M'!C121<>\"\",'ALMUERZO ALUMNOS 4B-4º M'!C121,\"\")","v":"Carbonada de vacuno"},null,{"$f":"IF('ALMUERZO ALUMNOS 4B-4º M'!E121<>\"\",'ALMUERZO ALUMNOS 4B-4º M'!E121,\"\")","v":"Salsa boloñesa"},null,{"$f":"IF('ALMUERZO ALUMNOS 4B-4º M'!G121<>\"\",'ALMUERZO ALUMNOS 4B-4º M'!G121,\"\")","v":"Pastel de papas"},null,{"$f":"IF('ALMUERZO ALUMNOS 4B-4º M'!I121<>\"\",'ALMUERZO ALUMNOS 4B-4º M'!I121,\"\")","v":"Vienesa"},null,{"$f":"IF('ALMUERZO ALUMNOS 4B-4º M'!K121<>\"\",'ALMUERZO ALUMNOS 4B-4º M'!K121,\"\")","v":"Carne asada"}]
[null,null,{"$f":"IF('ALMUERZO ALUMNOS 4B-4º M'!C122<>\"\",'ALMUERZO ALUMNOS 4B-4º M'!C122,\"\")","v":" "},null,{"$f":"IF('ALMUERZO ALUMNOS 4B-4º M'!E122<>\"\",'ALMUERZO ALUMNOS 4B-4º M'!E122,\"\")","v":"Quifaros "},null,{"$f":"IF('ALMUERZO ALUMNOS 4B-4º M'!G122<>\"\",'ALMUERZO ALUMNOS 4B-4º M'!G122,\"\")","v":""},null,{"$f":"IF('ALMUERZO ALUMNOS 4B-4º M'!I122<>\"\",'ALMUERZO ALUMNOS 4B-4º M'!I122,\"\")","v":"Lentejas guisadas"},null,{"$f":"IF('ALMUERZO ALUMNOS 4B-4º M'!K122<>\"\",'ALMUERZO ALUMNOS 4B-4º M'!K122,\"\")","v":"Papas fritas"}]
[]
[null,"Alternativa 2",{"$f":"IF('ALMUERZO ALUMNOS 4B-4º M'!C124<>\"\",'ALMUERZO ALUMNOS 4B-4º M'!C124,\"\")","v":"Cerdito mongoliano"},null,{"$f":"IF('ALMUERZO ALUMNOS 4B-4º M'!E124<>\"\",'ALMUERZO ALUMNOS 4B-4º M'!E124,\"\")","v":"Pescado apanado"},null,{"$f":"IF('ALMUERZO ALUMNOS 4B-4º M'!G124<>\"\",'ALMUERZO ALUMNOS 4B-4º M'!G124,\"\")","v":"Arroz a la valenciana"},null,{"$f":"IF('ALMUERZO ALUMNOS 4B-4º M'!I124<>\"\",'ALMUERZO ALUMNOS 4B-4º M'!I124,\"\")","v":"Pescado a la vizcaína"},null,{"$f":"IF('ALMUERZO ALUMNOS 4B-4º M'!K124<>\"\",'ALMUERZO ALUMNOS 4B-4º M'!K124,\"\")","v":"Chuleta a la mostaza"}]
[null,null,{"$f":"IF('ALMUERZO ALUMNOS 4B-4º M'!C125<>\"\",'ALMUERZO ALUMNOS 4B-4º M'!C125,\"\")","v":"Arroz chow fan"},null,{"$f":"IF('ALMUERZO ALUMNOS 4B-4º M'!E125<>\"\",'ALMUERZO ALUMNOS 4B-4º M'!E125,\"\")","v":"Verduras guisadas"},null,{"$f":"IF('ALMUERZO ALUMNOS 4B-4º M'!G125<>\"\",'ALMUERZO ALUMNOS 4B-4º M'!G125,\"\")","v":""},null,{"$f":"IF('ALMUERZO ALUMNOS 4B-4º M'!I125<>\"\",'ALMUERZO ALUMNOS 4B-4º M'!I125,\"\")","v":"Papas doradas"},null,{"$f":"IF('ALMUERZO ALUMNOS 4B-4º M'!K125<>\"\",'ALMUERZO ALUMNOS 4B-4º M'!K125,\"\")","v":"Espirales"}]
[]
[null,"Menú Hipocalórico",{"$f":"IF('ALMUERZO ALUMNOS 4B-4º M'!C127<>\"\",'ALMUERZO ALUMNOS 4B-4º M'!C127,\"\")","v":"Quesillo primavera"},null,{"$f":"IF('ALMUERZO ALUMNOS 4B-4º M'!E127<>\"\",'ALMUERZO ALUMNOS 4B-4º M'!E127,\"\")","v":"Pech de pollo al pimentón"},null,{"$f":"IF('ALMUERZO ALUMNOS 4B-4º M'!G127<>\"\",'ALMUERZO ALUMNOS 4B-4º M'!G127,\"\")","v":"Cornett jamón palta"},null,{"$f":"IF('ALMUERZO ALUMNOS 4B-4º M'!I127<>\"\",'ALMUERZO ALUMNOS 4B-4º M'!I127,\"\")","v":"Pescado a la vizacaína"},null,{"$f":"IF('ALMUERZO ALUMNOS 4B-4º M'!K127<>\"\",'ALMUERZO ALUMNOS 4B-4º M'!K127,\"\")","v":"Carne asada"}]
[null,null,{"$f":"IF('ALMUERZO ALUMNOS 4B-4º M'!C128<>\"\",'ALMUERZO ALUMNOS 4B-4º M'!C128,\"\")","v":"Ensaladas surtidas"},null,{"$f":"IF('ALMUERZO ALUMNOS 4B-4º M'!E128<>\"\",'ALMUERZO ALUMNOS 4B-4º M'!E128,\"\")","v":"Ensaladas surtidas"},null,{"$f":"IF('ALMUERZO ALUMNOS 4B-4º M'!G128<>\"\",'ALMUERZO ALUMNOS 4B-4º M'!G128,\"\")","v":"Ensaladas surtidas"},null,{"$f":"IF('ALMUERZO ALUMNOS 4B-4º M'!I128<>\"\",'ALMUERZO ALUMNOS 4B-4º M'!I128,\"\")","v":"Ensaladas surtidas"},null,{"$f":"IF('ALMUERZO ALUMNOS 4B-4º M'!K128<>\"\",'ALMUERZO ALUMNOS 4B-4º M'!K128,\"\")","v":"Ensaladas surtidas"}]
[]
[null,"Vegetariano",{"$f":"IF('ALMUERZO ALUMNOS 4B-4º M'!C130<>\"\",'ALMUERZO ALUMNOS 4B-4º M'!C130,\"\")","v":"Hamburguesa de garbanzo"},null,{"$f":"IF('ALMUERZO ALUMNOS 4B-4º M'!E130<>\"\",'ALMUERZO ALUMNOS 4B-4º M'!E130,\"\")","v":"Cocido de lentejas sin carne, con esparragos "},null,{"$f":"IF('ALMUERZO ALUMNOS 4B-4º M'!G130<>\"\",'ALMUERZO ALUMNOS 4B-4º M'!G130,\"\")","v":"Salteado thai de vegetales"},null,{"$f":"IF('ALMUERZO ALUMNOS 4B-4º M'!I130<>\"\",'ALMUERZO ALUMNOS 4B-4º M'!I130,\"\")","v":"Lasaña boloñesa soya- espinaca"},null,{"$f":"IF('ALMUERZO ALUMNOS 4B-4º M'!K130<>\"\",'ALMUERZO ALUMNOS 4B-4º M'!K130,\"\")","v":"Panqueque de acelga "}]
[null,null,{"$f":"IF('ALMUERZO ALUMNOS 4B-4º M'!C131<>\"\",'ALMUERZO ALUMNOS 4B-4º M'!C131,\"\")","v":"Charquican de verduras"},null,{"$f":"IF('ALMUERZO ALUMNOS 4B-4º M'!E131<>\"\",'ALMUERZO ALUMNOS 4B-4º M'!E131,\"\")","v":"Puré de papas"},null,{"$f":"IF('ALMUERZO ALUMNOS 4B-4º M'!G131<>\"\",'ALMUERZO ALUMNOS 4B-4º M'!G131,\"\")","v":"Espirales"},null,{"$f":"IF('ALMUERZO ALUMNOS 4B-4º M'!I131<>\"\",'ALMUERZO ALUMNOS 4B-4º M'!I131,\"\")","v":" "},null,{"$f":"IF('ALMUERZO ALUMNOS 4B-4º M'!K131<>\"\",'ALMUERZO ALUMNOS 4B-4º M'!K131,\"\")","v":"Papas fritas"}]
[]
[null,"Dieta",{"$f":"IF('ALMUERZO ALUMNOS 4B-4º M'!C133<>\"\",'ALMUERZO ALUMNOS 4B-4º M'!C133,\"\")","v":"Carne al jugo"},null,{"$f":"IF('ALMUERZO ALUMNOS 4B-4º M'!E133<>\"\",'ALMUERZO ALUMNOS 4B-4º M'!E133,\"\")","v":"Hamburguesa casera"},null,{"$f":"IF('ALMUERZO ALUMNOS 4B-4º M'!G133<>\"\",'ALMUERZO ALUMNOS 4B-4º M'!G133,\"\")","v":"Pescado al horno"},null,{"$f":"IF('ALMUERZO ALUMNOS 4B-4º M'!I133<>\"\",'ALMUERZO ALUMNOS 4B-4º M'!I133,\"\")","v":"Filetillo de pollo grillé"},null,{"$f":"IF('ALMUERZO ALUMNOS 4B-4º M'!K133<>\"\",'ALMUERZO ALUMNOS 4B-4º M'!K133,\"\")","v":"Carne asada"}]
[null,null,{"$f":"IF('ALMUERZO ALUMNOS 4B-4º M'!C134<>\"\",'ALMUERZO ALUMNOS 4B-4º M'!C134,\"\")","v":"Arroz blanco"},null,{"$f":"IF('ALMUERZO ALUMNOS 4B-4º M'!E134<>\"\",'ALMUERZO ALUMNOS 4B-4º M'!E134,\"\")","v":"Quifaros"},null,{"$f":"IF('ALMUERZO ALUMNOS 4B-4º M'!G134<>\"\",'ALMUERZO ALUMNOS 4B-4º M'!G134,\"\")","v":"Papas cocidas"},null,{"$f":"IF('ALMUERZO ALUMNOS 4B-4º M'!I134<>\"\",'ALMUERZO ALUMNOS 4B-4º M'!I134,\"\")","v":"Arroz blanco"},null,{"$f":"IF('ALMUERZO ALUMNOS 4B-4º M'!K134<>\"\",'ALMUERZO ALUMNOS 4B-4º M'!K134,\"\")","v":"Espirales"}]
[]
[null,"Bar de Postres",{"$f":"IF('ALMUERZO ALUMNOS 4B-4º M'!C136<>\"\",'ALMUERZO ALUMNOS 4B-4º M'!C136,\"\")","v":"Jalea"},null,{"$f":"IF('ALMUERZO ALUMNOS 4B-4º M'!E136<>\"\",'ALMUERZO ALUMNOS 4B-4º M'!E136,\"\")","v":"Jalea"},null,{"$f":"IF('ALMUERZO ALUMNOS 4B-4º M'!G136<>\"\",'ALMUERZO ALUMNOS 4B-4º M'!G136,\"\")","v":"Jalea"},null,{"$f":"IF('ALMUERZO ALUMNOS 4B-4º M'!I136<>\"\",'ALMUERZO ALUMNOS 4B-4º M'!I136,\"\")","v":"Jalea"},null,{"$f":"IF('ALMUERZO ALUMNOS 4B-4º M'!K136<>\"\",'ALMUERZO ALUMNOS 4B-4º M'!K136,\"\")","v":"Jalea"}]
[null,null,{"$f":"IF('ALMUERZO ALUMNOS 4B-4º M'!C137<>\"\",'ALMUERZO ALUMNOS 4B-4º M'!C137,\"\")","v":"Natilla"},null,{"$f":"IF('ALMUERZO ALUMNOS 4B-4º M'!E137<>\"\",'ALMUERZO ALUMNOS 4B-4º M'!E137,\"\")","v":"Leche nevada"},null,{"$f":"IF('ALMUERZO ALUMNOS 4B-4º M'!G137<>\"\",'ALMUERZO ALUMNOS 4B-4º M'!G137,\"\")","v":"Arroz con leche"},null,{"$f":"IF('ALMUERZO ALUMNOS 4B-4º M'!I137<>\"\",'ALMUERZO ALUMNOS 4B-4º M'!I137,\"\")","v":"Sémola con leche"},null,{"$f":"IF('ALMUERZO ALUMNOS 4B-4º M'!K137<>\"\",'ALMUERZO ALUMNOS 4B-4º M'!K137,\"\")","v":"Bavaroise"}]
[null,null,{"$f":"IF('ALMUERZO ALUMNOS 4B-4º M'!C138<>\"\",'ALMUERZO ALUMNOS 4B-4º M'!C138,\"\")","v":"Fruta natural de la estación"}," ",{"$f":"IF('ALMUERZO ALUMNOS 4B-4º M'!E138<>\"\",'ALMUERZO ALUMNOS 4B-4º M'!E138,\"\")","v":"Fruta natural de la estación"}," ",{"$f":"IF('ALMUERZO ALUMNOS 4B-4º M'!G138<>\"\",'ALMUERZO ALUMNOS 4B-4º M'!G138,\"\")","v":"Fruta natural de la estación"}," ",{"$f":"IF('ALMUERZO ALUMNOS 4B-4º M'!I138<>\"\",'ALMUERZO ALUMNOS 4B-4º M'!I138,\"\")","v":"Fruta natural de la estación"}," ",{"$f":"IF('ALMUERZO ALUMNOS 4B-4º M'!K138<>\"\",'ALMUERZO ALUMNOS 4B-4º M'!K138,\"\")","v":"Fruta natural de la estación"}," "]
[]
[null,{"$f":"'ALMUERZO ALUMNOS 4B-4º M'!B140","v":"SEMANA 06"},{"$f":"'ALMUERZO ALUMNOS 4B-4º M'!C140","v":"2022-07-04"},{"$f":"'ALMUERZO ALUMNOS 4B-4º M'!D140","v":"RAC"},{"$f":"'ALMUERZO ALUMNOS 4B-4º M'!E140","v":"2022-07-05"},{"$f":"'ALMUERZO ALUMNOS 4B-4º M'!F140","v":"RAC"},{"$f":"'ALMUERZO ALUMNOS 4B-4º M'!G140","v":"2022-07-06"},{"$f":"'ALMUERZO ALUMNOS 4B-4º M'!H140","v":"RAC"},{"$f":"'ALMUERZO ALUMNOS 4B-4º M'!I140","v":"2022-07-07"},{"$f":"'ALMUERZO ALUMNOS 4B-4º M'!J140","v":"RAC"},{"$f":"'ALMUERZO ALUMNOS 4B-4º M'!K140","v":"2022-07-08"},{"$f":"'ALMUERZO ALUMNOS 4B-4º M'!L140","v":"RAC"}]
[]
[null,"Sopa",{"$f":"IF('ALMUERZO ALUMNOS 4B-4º M'!C142<>\"\",'ALMUERZO ALUMNOS 4B-4º M'!C142,\"\")","v":"Crema de verduras"}," ",{"$f":"IF('ALMUERZO ALUMNOS 4B-4º M'!E142<>\"\",'ALMUERZO ALUMNOS 4B-4º M'!E142,\"\")","v":"Consomé de ave"}," ",{"$f":"IF('ALMUERZO ALUMNOS 4B-4º M'!G142<>\"\",'ALMUERZO ALUMNOS 4B-4º M'!G142,\"\")","v":"Crema de choclo"}," ",{"$f":"IF('ALMUERZO ALUMNOS 4B-4º M'!I142<>\"\",'ALMUERZO ALUMNOS 4B-4º M'!I142,\"\")","v":"Crema de choclo"}," ",{"$f":"IF('ALMUERZO ALUMNOS 4B-4º M'!K142<>\"\",'ALMUERZO ALUMNOS 4B-4º M'!K142,\"\")","v":"Crema de choclo"}," "]
[null,null," "," "," "," "," "," "," "," "," "," "]
[null,"Salad Bar",{"$f":"IF('ALMUERZO ALUMNOS 4B-4º M'!C144<>\"\",'ALMUERZO ALUMNOS 4B-4º M'!C144,\"\")","v":"Repollo"},null,{"$f":"IF('ALMUERZO ALUMNOS 4B-4º M'!E144<>\"\",'ALMUERZO ALUMNOS 4B-4º M'!E144,\"\")","v":"Lechuga"},null,{"$f":"IF('ALMUERZO ALUMNOS 4B-4º M'!G144<>\"\",'ALMUERZO ALUMNOS 4B-4º M'!G144,\"\")","v":"Repollo mix"},null,{"$f":"IF('ALMUERZO ALUMNOS 4B-4º M'!I144<>\"\",'ALMUERZO ALUMNOS 4B-4º M'!I144,\"\")","v":"Lechuga"},null,{"$f":"IF('ALMUERZO ALUMNOS 4B-4º M'!K144<>\"\",'ALMUERZO ALUMNOS 4B-4º M'!K144,\"\")","v":"Repollo "}]
[null,null,{"$f":"IF('ALMUERZO ALUMNOS 4B-4º M'!C145<>\"\",'ALMUERZO ALUMNOS 4B-4º M'!C145,\"\")","v":"Tomate"},null,{"$f":"IF('ALMUERZO ALUMNOS 4B-4º M'!E145<>\"\",'ALMUERZO ALUMNOS 4B-4º M'!E145,\"\")","v":"Pepino"},null,{"$f":"IF('ALMUERZO ALUMNOS 4B-4º M'!G145<>\"\",'ALMUERZO ALUMNOS 4B-4º M'!G145,\"\")","v":"Tomate"},null,{"$f":"IF('ALMUERZO ALUMNOS 4B-4º M'!I145<>\"\",'ALMUERZO ALUMNOS 4B-4º M'!I145,\"\")","v":"Betarraga"},null,{"$f":"IF('ALMUERZO ALUMNOS 4B-4º M'!K145<>\"\",'ALMUERZO ALUMNOS 4B-4º M'!K145,\"\")","v":"Tomate"}]
[null,null,{"$f":"IF('ALMUERZO ALUMNOS 4B-4º M'!C146<>\"\",'ALMUERZO ALUMNOS 4B-4º M'!C146,\"\")","v":"Zanahoria"},null,{"$f":"IF('ALMUERZO ALUMNOS 4B-4º M'!E146<>\"\",'ALMUERZO ALUMNOS 4B-4º M'!E146,\"\")","v":"Betarraga"},null,{"$f":"IF('ALMUERZO ALUMNOS 4B-4º M'!G146<>\"\",'ALMUERZO ALUMNOS 4B-4º M'!G146,\"\")","v":"Cebolla"},null,{"$f":"IF('ALMUERZO ALUMNOS 4B-4º M'!I146<>\"\",'ALMUERZO ALUMNOS 4B-4º M'!I146,\"\")","v":"Zapallito -Pimentón"},null,{"$f":"IF('ALMUERZO ALUMNOS 4B-4º M'!K146<>\"\",'ALMUERZO ALUMNOS 4B-4º M'!K146,\"\")","v":"Apio"}]
[]
[null,"Alternativa 1",{"$f":"IF('ALMUERZO ALUMNOS 4B-4º M'!C148<>\"\",'ALMUERZO ALUMNOS 4B-4º M'!C148,\"\")","v":"Juliana de vacuno"},null,{"$f":"IF('ALMUERZO ALUMNOS 4B-4º M'!E148<>\"\",'ALMUERZO ALUMNOS 4B-4º M'!E148,\"\")","v":" "},null,{"$f":"IF('ALMUERZO ALUMNOS 4B-4º M'!G148<>\"\",'ALMUERZO ALUMNOS 4B-4º M'!G148,\"\")","v":" "},null,{"$f":"IF('ALMUERZO ALUMNOS 4B-4º M'!I148<>\"\",'ALMUERZO ALUMNOS 4B-4º M'!I148,\"\")","v":" "},null,{"$f":"IF('ALMUERZO ALUMNOS 4B-4º M'!K148<>\"\",'ALMUERZO ALUMNOS 4B-4º M'!K148,\"\")","v":" "}]
[null,null,{"$f":"IF('ALMUERZO ALUMNOS 4B-4º M'!C149<>\"\",'ALMUERZO ALUMNOS 4B-4º M'!C149,\"\")","v":"Corbatitas "},null,{"$f":"IF('ALMUERZO ALUMNOS 4B-4º M'!E149<>\"\",'ALMUERZO ALUMNOS 4B-4º M'!E149,\"\")","v":" "},null,{"$f":"IF('ALMUERZO ALUMNOS 4B-4º M'!G149<>\"\",'ALMUERZO ALUMNOS 4B-4º M'!G149,\"\")","v":" "},null,{"$f":"IF('ALMUERZO ALUMNOS 4B-4º M'!I149<>\"\",'ALMUERZO ALUMNOS 4B-4º M'!I149,\"\")","v":" "},null,{"$f":"IF('ALMUERZO ALUMNOS 4B-4º M'!K149<>\"\",'ALMUERZO ALUMNOS 4B-4º M'!K149,\"\")","v":" "}]
[]
[null,"Alternativa 2",{"$f":"IF('ALMUERZO ALUMNOS 4B-4º M'!C151<>\"\",'ALMUERZO ALUMNOS 4B-4º M'!C151,\"\")","v":"Chuletas al horno"},null,{"$f":"IF('ALMUERZO ALUMNOS 4B-4º M'!E151<>\"\",'ALMUERZO ALUMNOS 4B-4º M'!E151,\"\")","v":" "},null,{"$f":"IF('ALMUERZO ALUMNOS 4B-4º M'!G151<>\"\",'ALMUERZO ALUMNOS 4B-4º M'!G151,\"\")","v":" "},null,{"$f":"IF('ALMUERZO ALUMNOS 4B-4º M'!I151<>\"\",'ALMUERZO ALUMNOS 4B-4º M'!I151,\"\")","v":" "},null,{"$f":"IF('ALMUERZO ALUMNOS 4B-4º M'!K151<>\"\",'ALMUERZO ALUMNOS 4B-4º M'!K151,\"\")","v":" "}]
[null,null,{"$f":"IF('ALMUERZO ALUMNOS 4B-4º M'!C152<>\"\",'ALMUERZO ALUMNOS 4B-4º M'!C152,\"\")","v":"Verduras salteadas"},null,{"$f":"IF('ALMUERZO ALUMNOS 4B-4º M'!E152<>\"\",'ALMUERZO ALUMNOS 4B-4º M'!E152,\"\")","v":" "},null,{"$f":"IF('ALMUERZO ALUMNOS 4B-4º M'!G152<>\"\",'ALMUERZO ALUMNOS 4B-4º M'!G152,\"\")","v":" "},null,{"$f":"IF('ALMUERZO ALUMNOS 4B-4º M'!I152<>\"\",'ALMUERZO ALUMNOS 4B-4º M'!I152,\"\")","v":" "},null,{"$f":"IF('ALMUERZO ALUMNOS 4B-4º M'!K152<>\"\",'ALMUERZO ALUMNOS 4B-4º M'!K152,\"\")","v":" "}]
[]
[null,"Menú Hipocalórico",{"$f":"IF('ALMUERZO ALUMNOS 4B-4º M'!C154<>\"\",'ALMUERZO ALUMNOS 4B-4º M'!C154,\"\")","v":"Tortilla de zanahoria"},null,{"$f":"IF('ALMUERZO ALUMNOS 4B-4º M'!E154<>\"\",'ALMUERZO ALUMNOS 4B-4º M'!E154,\"\")","v":" "},null,{"$f":"IF('ALMUERZO ALUMNOS 4B-4º M'!G154<>\"\",'ALMUERZO ALUMNOS 4B-4º M'!G154,\"\")","v":" "},null,{"$f":"IF('ALMUERZO ALUMNOS 4B-4º M'!I154<>\"\",'ALMUERZO ALUMNOS 4B-4º M'!I154,\"\")","v":" "},null,{"$f":"IF('ALMUERZO ALUMNOS 4B-4º M'!K154<>\"\",'ALMUERZO ALUMNOS 4B-4º M'!K154,\"\")","v":" "}]
[null,null,{"$f":"IF('ALMUERZO ALUMNOS 4B-4º M'!C155<>\"\",'ALMUERZO ALUMNOS 4B-4º M'!C155,\"\")","v":"Ensaladas surtidas"},null,{"$f":"IF('ALMUERZO ALUMNOS 4B-4º M'!E155<>\"\",'ALMUERZO ALUMNOS 4B-4º M'!E155,\"\")","v":" "},null,{"$f":"IF('ALMUERZO ALUMNOS 4B-4º M'!G155<>\"\",'ALMUERZO ALUMNOS 4B-4º M'!G155,\"\")","v":" "},null,{"$f":"IF('ALMUERZO ALUMNOS 4B-4º M'!I155<>\"\",'ALMUERZO ALUMNOS 4B-4º M'!I155,\"\")","v":" "},null,{"$f":"IF('ALMUERZO ALUMNOS 4B-4º M'!K155<>\"\",'ALMUERZO ALUMNOS 4B-4º M'!K155,\"\")","v":" "}]
[]
[null,"Vegetariano",{"$f":"IF('ALMUERZO ALUMNOS 4B-4º M'!C157<>\"\",'ALMUERZO ALUMNOS 4B-4º M'!C157,\"\")","v":"Lasaña de verduras"},null,{"$f":"IF('ALMUERZO ALUMNOS 4B-4º M'!E157<>\"\",'ALMUERZO ALUMNOS 4B-4º M'!E157,\"\")","v":" "},null,{"$f":"IF('ALMUERZO ALUMNOS 4B-4º M'!G157<>\"\",'ALMUERZO ALUMNOS 4B-4º M'!G157,\"\")","v":" "},null,{"$f":"IF('ALMUERZO ALUMNOS 4B-4º M'!I157<>\"\",'ALMUERZO ALUMNOS 4B-4º M'!I157,\"\")","v":" "},null,{"$f":"IF('ALMUERZO ALUMNOS 4B-4º M'!K157<>\"\",'ALMUERZO ALUMNOS 4B-4º M'!K157,\"\")","v":" "}]
[null,null,{"$f":"IF('ALMUERZO ALUMNOS 4B-4º M'!C158<>\"\",'ALMUERZO ALUMNOS 4B-4º M'!C158,\"\")","v":" "},null,{"$f":"IF('ALMUERZO ALUMNOS 4B-4º M'!E158<>\"\",'ALMUERZO ALUMNOS 4B-4º M'!E158,\"\")","v":" "},null,{"$f":"IF('ALMUERZO ALUMNOS 4B-4º M'!G158<>\"\",'ALMUERZO ALUMNOS 4B-4º M'!G158,\"\")","v":" "},null,{"$f":"IF('ALMUERZO ALUMNOS 4B-4º M'!I158<>\"\",'ALMUERZO ALUMNOS 4B-4º M'!I158,\"\")","v":" "},null,{"$f":"IF('ALMUERZO ALUMNOS 4B-4º M'!K158<>\"\",'ALMUERZO ALUMNOS 4B-4º M'!K158,\"\")","v":" "}]
[]
[null,"Dieta",{"$f":"IF('ALMUERZO ALUMNOS 4B-4º M'!C160<>\"\",'ALMUERZO ALUMNOS 4B-4º M'!C160,\"\")","v":"Juliana de ave"},null,{"$f":"IF('ALMUERZO ALUMNOS 4B-4º M'!E160<>\"\",'ALMUERZO ALUMNOS 4B-4º M'!E160,\"\")","v":" "},null,{"$f":"IF('ALMUERZO ALUMNOS 4B-4º M'!G160<>\"\",'ALMUERZO ALUMNOS 4B-4º M'!G160,\"\")","v":" "},null,{"$f":"IF('ALMUERZO ALUMNOS 4B-4º M'!I160<>\"\",'ALMUERZO ALUMNOS 4B-4º M'!I160,\"\")","v":" "},null,{"$f":"IF('ALMUERZO ALUMNOS 4B-4º M'!K160<>\"\",'ALMUERZO ALUMNOS 4B-4º M'!K160,\"\")","v":" "}]
[null,null,{"$f":"IF('ALMUERZO ALUMNOS 4B-4º M'!C161<>\"\",'ALMUERZO ALUMNOS 4B-4º M'!C161,\"\")","v":"Arroz blanco"},null,{"$f":"IF('ALMUERZO ALUMNOS 4B-4º M'!E161<>\"\",'ALMUERZO ALUMNOS 4B-4º M'!E161,\"\")","v":" "},null,{"$f":"IF('ALMUERZO ALUMNOS 4B-4º M'!G161<>\"\",'ALMUERZO ALUMNOS 4B-4º M'!G161,\"\")","v":" "},null,{"$f":"IF('ALMUERZO ALUMNOS 4B-4º M'!I161<>\"\",'ALMUERZO ALUMNOS 4B-4º M'!I161,\"\")","v":" "},null,{"$f":"IF('ALMUERZO ALUMNOS 4B-4º M'!K161<>\"\",'ALMUERZO ALUMNOS 4B-4º M'!K161,\"\")","v":" "}]
[]
[null,"Bar de Postres",{"$f":"IF('ALMUERZO ALUMNOS 4B-4º M'!C163<>\"\",'ALMUERZO ALUMNOS 4B-4º M'!C163,\"\")","v":"Jalea"},null,{"$f":"IF('ALMUERZO ALUMNOS 4B-4º M'!E163<>\"\",'ALMUERZO ALUMNOS 4B-4º M'!E163,\"\")","v":"Jalea"},null,{"$f":"IF('ALMUERZO ALUMNOS 4B-4º M'!G163<>\"\",'ALMUERZO ALUMNOS 4B-4º M'!G163,\"\")","v":"Jalea"},null,{"$f":"IF('ALMUERZO ALUMNOS 4B-4º M'!I163<>\"\",'ALMUERZO ALUMNOS 4B-4º M'!I163,\"\")","v":"Jalea"},null,{"$f":"IF('ALMUERZO ALUMNOS 4B-4º M'!K163<>\"\",'ALMUERZO ALUMNOS 4B-4º M'!K163,\"\")","v":"Jalea"}]
[null,null,{"$f":"IF('ALMUERZO ALUMNOS 4B-4º M'!C164<>\"\",'ALMUERZO ALUMNOS 4B-4º M'!C164,\"\")","v":"Bavaroise"},null,{"$f":"IF('ALMUERZO ALUMNOS 4B-4º M'!E164<>\"\",'ALMUERZO ALUMNOS 4B-4º M'!E164,\"\")","v":"Flan"},null,{"$f":"IF('ALMUERZO ALUMNOS 4B-4º M'!G164<>\"\",'ALMUERZO ALUMNOS 4B-4º M'!G164,\"\")","v":"Helado"},null,{"$f":"IF('ALMUERZO ALUMNOS 4B-4º M'!I164<>\"\",'ALMUERZO ALUMNOS 4B-4º M'!I164,\"\")","v":"Leche asada"},null,{"$f":"IF('ALMUERZO ALUMNOS 4B-4º M'!K164<>\"\",'ALMUERZO ALUMNOS 4B-4º M'!K164,\"\")","v":"Sémola con leche"}]
[null,null,{"$f":"IF('ALMUERZO ALUMNOS 4B-4º M'!C165<>\"\",'ALMUERZO ALUMNOS 4B-4º M'!C165,\"\")","v":"Fruta natural de la estación"}," ",{"$f":"IF('ALMUERZO ALUMNOS 4B-4º M'!E165<>\"\",'ALMUERZO ALUMNOS 4B-4º M'!E165,\"\")","v":"Fruta natural de la estación"}," ",{"$f":"IF('ALMUERZO ALUMNOS 4B-4º M'!G165<>\"\",'ALMUERZO ALUMNOS 4B-4º M'!G165,\"\")","v":"Fruta natural de la estación"}," ",{"$f":"IF('ALMUERZO ALUMNOS 4B-4º M'!I165<>\"\",'ALMUERZO ALUMNOS 4B-4º M'!I165,\"\")","v":"Fruta natural de la estación"}," ",{"$f":"IF('ALMUERZO ALUMNOS 4B-4º M'!K165<>\"\",'ALMUERZO ALUMNOS 4B-4º M'!K165,\"\")","v":"Fruta natural de la estación"}," "]
[]
[null,null,null,null,"CUADRO DE CONTROL"]
[]
[]
[null,null,null,null,"CREADA POR",null,"REVISADO POR",null,"RATIFICADA POR",null,"APROBADO POR"]
[null,null,null,null,"DEPTO. TECNICO",null,"CASINO",null,"SUPERVISOR",null,"CLIENTE"]